Workbook

Sheet Hárok1
A1: Úprava výdavkov rozpočtu obce, rozpočtové opatrenie č. 11 na vedomie zastupiteľstvu
A3: Rozpočtová klasifikácia
A4: Pr Pp | B4: Zdr | C4: Pol | D4: Popis | E4: 2019 Skutočnosť | F4: 2020 Skutočnosť | G4: 2021 Schválený rozpočet | H4: Upravený RR po úprave č. 8 | I4: Návrh na úpravu č.11 | J4: Upravený RR po úprave č. 11 | K4: Plnenie k 30.06.2021 | L4: %upr. schv. | M4: BR 2019 | N4: BR 2020 | O4: schv.KR 2021 | P4: schválený 2021 | Q4: KR 2020 | R4: KR 2019 | S4: BR Návrh č.2 | T4: KR uprava c.2 | U4: BR 2021 po úprave č.2 | V4: KR po úprave č.1 | W4: BR k 31.03.2021 | X4: KR k 31.03.2021 | Y4: upraveny BR po úprave č.1 | Z4: KR po úprave č.2
A6: 01 Program Správa a rozvoj obce
A7: 01 01 Podprogram Podpora spoločenských organizácií
A8: 01 01 | B8: 41 | C8: 633 | D8: Reprezentačné | E8: 6517.17 | F8: 5550.09 | G8: 5500 | H8: 5500 | I8: 0 | J8: =SUM(H8:I8) -> 5500 | K8: 1009.68 | L8: =vypocetPercent(J8,K8) -> 18.35781818 | M8: =IF(B8="Bežný rozpočet",E8,0) -> 0 | O8: =IF(B8="Kapitálový rozpočet",G8,0) -> 0 | P8: =IF(B8="Bežný rozpočet",G8,0) -> 0 | R8: =IF(B8="Kapitálový rozpočet",E8,0) -> 0 | S8: =IF(B8="Bežný rozpočet",I8,0) -> 0 | T8: =IF(B8="Kapitálový rozpočet",I8,0) -> 0 | U8: =IF(B8="Bežný rozpočet",J8,0) -> 0 | V8: =IF(B8="Kapitálový rozpočet",J8,0) -> 0 | W8: =IF(B8="Bežný rozpočet",K8,0) -> 0 | X8: =IF(B8="Kapitálový rozpočet",K8,0) -> 0 | Y8: =IF(B8="Bežný rozpočet",H8,0) -> 0 | Z8: =IF(B8="Kapitálový rozpočet",J8,0) -> 0
A9: 01 01 | B9: 41 | C9: 641 | D9: Bežné transf.obce - CVČ NZ | E9: 684.4 | F9: 62 | G9: 640 | H9: 640 | I9: 0 | J9: =SUM(H9:I9) -> 640 | K9: 130.8 | L9: =vypocetPercent(J9,K9) -> 20.4375 | M9: 0 | N9: =IF(B9="Bežný rozpočet",F9,0) -> 0 | O9: 0 | P9: 0 | Q9: =IF(B9="Kapitálový rozpočet",F9,0) -> 0 | R9: 0 | S9: 0 | T9: 0 | U9: 0 | V9: =IF(B9="Kapitálový rozpočet",H9,0) -> 0 | W9: 0 | X9: 0 | Y9: 0 | Z9: 0
A10: 01 01 | B10: 41 | C10: 642 | D10: Bežné transf.nezisk.org. | E10: 7800 | F10: 3900 | G10: 6500 | H10: 26500 | I10: 0 | J10: =SUM(H10:I10) -> 26500 | K10: 19000 | L10: =vypocetPercent(J10,K10) -> 71.69811321 | M10: 0 | N10: 0 | O10: 0 | P10: 0 | Q10: 0 | R10: 0 | S10: 0 | T10: 0 | U10: 0 | V10: 0 | W10: 0 | X10: 0 | Y10: 0 | Z10: 0
A11: 01 01 | B11: 41 | C11: Vlastné zdroje | E11: =SUM(E8:E10) -> 15001.57 | F11: =SUM(F8:F10) -> 9512.09 | G11: =SUM(G8:G10) -> 12640 | H11: =SUM(H8:H10) -> 32640 | I11: =SUM(I8:I10) -> 0 | J11: =SUM(H11:I11) -> 32640 | K11: =SUM(K8:K10) -> 20140.48 | L11: 61.70490196 | M11: 0 | N11: 0 | O11: 0 | P11: 0 | Q11: 0 | R11: 0 | S11: 0 | T11: 0 | U11: 0 | V11: 0 | W11: 0 | X11: 0 | Y11: 0 | Z11: 0
A12: 01 01 | B12: Bežný rozpočet | E12: =SUM(E11) -> 15001.57 | F12: =SUM(F11) -> 9512.09 | G12: =SUM(G11) -> 12640 | H12: =SUM(H11) -> 32640 | I12: =SUM(I11) -> 0 | J12: =SUM(H12:I12) -> 32640 | K12: =SUM(K11) -> 20140.48 | L12: 61.70490196 | M12: 15001.57 | N12: =IF(B12="Bežný rozpočet",F12,0) -> 9512.09 | O12: 0 | P12: 12640 | Q12: 0 | R12: 0 | S12: 0 | T12: 0 | U12: 32640 | V12: 0 | W12: 20140.48 | X12: 0 | Y12: 32640 | Z12: 0
A13: 01 02 Podprogram Členstvo v samosprávnych organizáciách a združeniach | M13: 0 | N13: =IF(B13="Bežný rozpočet",F13,0) -> 0 | O13: 0 | P13: 0 | Q13: 0 | R13: 0 | S13: 0 | T13: 0 | U13: 0 | V13: 0 | W13: 0 | X13: 0 | Y13: 0 | Z13: 0
A14: 01 02 | B14: 41 | C14: 642 | D14: Bežné transf.na členské prísp. | E14: 14159.94 | F14: 15336.47 | G14: 17700 | H14: 13830 | I14: 0 | J14: =SUM(H14:I14) -> 13830 | K14: 11227.46 | L14: =vypocetPercent(J14,K14) -> 81.18192336 | M14: 0 | N14: 0 | O14: 0 | P14: 0 | Q14: 0 | R14: 0 | S14: 0 | T14: 0 | U14: 0 | V14: 0 | W14: 0 | X14: 0 | Y14: 0 | Z14: 0
A15: 01 02 | B15: Bežný rozpočet | E15: =SUM(E14:E14) -> 14159.94 | F15: =SUM(F14:F14) -> 15336.47 | G15: =SUM(G14:G14) -> 17700 | H15: =SUM(H14:H14) -> 13830 | I15: =SUM(I14:I14) -> 0 | J15: =SUM(H15:I15) -> 13830 | K15: =SUM(K14:K14) -> 11227.46 | L15: =vypocetPercent(J15,K15) -> 81.18192336 | M15: 14159.94 | N15: 15336.47 | O15: 0 | P15: 17700 | Q15: 0 | R15: 0 | S15: 0 | T15: 0 | U15: 13830 | V15: 0 | W15: 11227.46 | X15: 0 | Y15: 13830 | Z15: 0
A16: 01 03 Podprogram Výkon funkcie poslancov obce a členov komisií | M16: 0 | N16: 0 | O16: 0 | P16: 0 | Q16: 0 | R16: 0 | S16: 0 | T16: 0 | U16: 0 | V16: 0 | W16: 0 | X16: 0 | Y16: 0 | Z16: 0
A17: 01 03 | B17: 41 | C17: 620 | D17: Poistné a príspevky | E17: 429.56 | F17: 1688.31 | G17: 1953 | H17: 1953 | I17: 0 | J17: =SUM(H17:I17) -> 1953 | K17: 720.6 | L17: =vypocetPercent(J17,K17) -> 36.89708141 | M17: 0 | N17: 0 | O17: 0 | P17: 0 | Q17: 0 | R17: 0 | S17: 0 | T17: 0 | U17: 0 | V17: 0 | W17: 0 | X17: 0 | Y17: 0 | Z17: 0
A18: 01 03 | B18: 41 | C18: 637 | D18: Služby - odmeny | E18: 1378.4 | F18: 5220 | G18: 6000 | H18: 6000 | I18: 0 | J18: =SUM(H18:I18) -> 6000 | K18: 2280 | L18: =vypocetPercent(J18,K18) -> 38 | M18: 0 | N18: 0 | O18: 0 | P18: 0 | Q18: 0 | R18: 0 | S18: 0 | T18: 0 | U18: 0 | V18: 0 | W18: 0 | X18: 0 | Y18: 0 | Z18: 0
A19: 01 03 | B19: Bežný rozpočet | E19: =SUM(E17:E18) -> 1807.96 | F19: =SUM(F17:F18) -> 6908.31 | G19: =SUM(G17:G18) -> 7953 | H19: =SUM(H17:H18) -> 7953 | I19: =SUM(I17:I18) -> 0 | J19: =SUM(H19:I19) -> 7953 | K19: =SUM(K17:K18) -> 3000.6 | L19: 37.72915881 | M19: 1807.96 | N19: 6908.31 | O19: 0 | P19: 7953 | Q19: 0 | R19: 0 | S19: 0 | T19: 0 | U19: 7953 | V19: 0 | W19: 3000.6 | X19: 0 | Y19: 7953 | Z19: 0
A20: 01 05 Podprogram Príprava a realizácia rozvojových projektov | M20: 0 | N20: 0 | O20: 0 | P20: 0 | Q20: 0 | R20: 0 | S20: 0 | T20: 0 | U20: 0 | V20: 0 | W20: 0 | X20: 0 | Y20: 0 | Z20: 0
A21: 01 05 | B21: 41 | C21: 633 | D21: Materiál | E21: 348 | F21: 0 | G21: 0 | H21: 0 | I21: 0 | J21: =SUM(H21:I21) -> 0 | K21: 0 | L21: =vypocetPercent(J21,K21) -> 0 | M21: 0 | N21: 0 | O21: 0 | P21: 0 | Q21: 0 | R21: 0 | S21: 0 | T21: 0 | U21: 0 | V21: 0 | W21: 0 | X21: 0 | Y21: 0 | Z21: 0
A22: 01 05 | B22: 41 | C22: 637 | D22: Špeciálne služby | E22: 5665.27 | F22: 14096.69 | G22: 10000 | H22: 10000 | I22: 0 | J22: =SUM(H22:I22) -> 10000 | K22: 4258.8 | L22: =vypocetPercent(J22,K22) -> 42.588 | M22: 0 | N22: 0 | O22: 0 | P22: 0 | Q22: 0 | R22: 0 | S22: 0 | T22: 0 | U22: 0 | V22: 0 | W22: 0 | X22: 0 | Y22: 0 | Z22: 0
A23: 01 05 | B23: Bežný rozpočet | E23: =SUM(E21:E22) -> 6013.27 | F23: =SUM(F21:F22) -> 14096.69 | G23: =SUM(G21:G22) -> 10000 | H23: =SUM(H21:H22) -> 10000 | I23: =SUM(I21:I22) -> 0 | J23: 10000 | K23: =SUM(K21:K22) -> 4258.8 | L23: 42.588 | M23: 6013.27 | N23: 14096.69 | O23: 0 | P23: 10000 | Q23: 0 | R23: 0 | S23: 0 | T23: 0 | U23: 10000 | V23: 0 | W23: 4258.8 | X23: 0 | Y23: 10000 | Z23: 0
A24: 01 05 | B24: 43 | C24: 711 | D24: Nákup pozemkov | E24: 22977.9 | F24: 0 | G24: 5000 | H24: 5000 | I24: 0 | J24: 5000 | K24: 1060 | L24: 21.2 | M24: 0 | N24: 0 | O24: 0 | P24: 0 | Q24: 0 | R24: 0 | S24: 0 | T24: 0 | U24: 0 | V24: 0 | W24: 0 | X24: 0 | Y24: 0 | Z24: 0
A25: 01 05 | B25: 41 | C25: 711 | D25: Nákup pozemkov | E25: 0 | F25: 0 | G25: 15000 | H25: 0 | I25: 0 | J25: 0 | K25: 0 | L25: 0 | M25: 0 | N25: 0 | O25: 0 | P25: 0 | Q25: 0 | R25: 0 | S25: 0 | T25: 0 | U25: 0 | V25: 0 | W25: 0 | X25: 0 | Y25: 0 | Z25: 0
A26: 01 05 | B26: 46 | C26: 711 | D26: Územný plán | E26: 0 | F26: 0 | G26: 46000 | H26: 30000 | I26: 0 | J26: 30000 | K26: 0 | L26: 0 | M26: 0 | N26: 0 | O26: 0 | P26: 0 | Q26: 0 | R26: 0 | S26: 0 | T26: 0 | U26: 0 | V26: 0 | W26: 0 | X26: 0 | Y26: 0 | Z26: 0
A27: 01 05 | B27: 46 | C27: 716 | D27: Prípr.a projekt. Dok. - zb.sp.,ÚP | E27: 0 | F27: 0 | G27: 0 | H27: 20000 | I27: 0 | J27: 20000 | K27: 2235.04 | L27: 11.1752 | M27: 0 | N27: 0 | O27: 0 | P27: 0 | Q27: 0 | R27: 0 | S27: 0 | T27: 0 | U27: 0 | V27: 0 | W27: 0 | X27: 0 | Y27: 0 | Z27: 0
A28: 01 05 | B28: 41 | C28: 716 | D28: Prípr.a projekt. Dok. - zb.sp.,ÚP | E28: 795 | F28: 3936 | G28: 10000 | H28: 0 | I28: 0 | J28: 0 | K28: 0 | L28: 0 | M28: 0 | N28: 0 | O28: 0 | P28: 0 | Q28: 0 | R28: 0 | S28: 0 | T28: 0 | U28: 0 | V28: 0 | W28: 0 | X28: 0 | Y28: 0 | Z28: 0
A29: 01 05 | B29: 41 | C29: 713 | D29: Nákup zariadení - komposterov | E29: 4971.81 | F29: 0 | G29: 0 | H29: 0 | I29: 0 | J29: 0 | K29: 0 | L29: 0 | M29: 0 | N29: 0 | O29: 0 | P29: 0 | Q29: 0 | R29: 0 | S29: 0 | T29: 0 | U29: 0 | V29: 0 | W29: 0 | X29: 0 | Y29: 0 | Z29: 0
A30: 01 05 | B30: 41 | C30: 717 | D30: Rekonštr.plynovej reg.stanice | E30: 6480 | F30: 0 | G30: 0 | H30: 0 | I30: 0 | J30: 0 | K30: 0 | L30: 0 | M30: 0 | N30: 0 | O30: 0 | P30: 0 | Q30: 0 | R30: 0 | S30: 0 | T30: 0 | U30: 0 | V30: 0 | W30: 0 | X30: 0 | Y30: 0 | Z30: 0
A31: 01 05 | B31: 41 | C31: 717 | D31: Prístavba MŠ | E31: 7258.75 | F31: 0 | G31: 0 | H31: 0 | I31: 0 | J31: 0 | K31: 0 | L31: 0 | M31: 0 | N31: 0 | O31: 0 | P31: 0 | Q31: 0 | R31: 0 | S31: 0 | T31: 0 | U31: 0 | V31: 0 | W31: 0 | X31: 0 | Y31: 0 | Z31: 0
A32: 01 05 | B32: 41 | C32: 717 | D32: Výstavba chodníkov | E32: 0 | F32: 120 | G32: 14100 | H32: 14100 | I32: 0 | J32: 14100 | K32: 0 | L32: 0 | M32: 0 | N32: 0 | O32: 0 | P32: 0 | Q32: 0 | R32: 0 | S32: 0 | T32: 0 | U32: 0 | V32: 0 | W32: 0 | X32: 0 | Y32: 0 | Z32: 0
A33: 01 05 | B33: 41 | C33: 718 | D33: Výpočt.a telekom.technika | E33: 0 | F33: 1884.6 | G33: 0 | H33: 0 | I33: 0 | J33: 0 | K33: 0 | L33: 0 | M33: 0 | N33: 0 | O33: 0 | P33: 0 | Q33: 0 | R33: 0 | S33: 0 | T33: 0 | U33: 0 | V33: 0 | W33: 0 | X33: 0 | Y33: 0 | Z33: 0
A34: 01 05 | B34: 1AB2 | C34: 713 | D34: Nákup kontajnerov - Intenzif.tried. | E34: 84520.83 | F34: 0 | G34: 0 | H34: 0 | I34: 0 | J34: 0 | K34: 0 | L34: 0 | M34: 0 | N34: 0 | O34: 0 | P34: 0 | Q34: 0 | R34: 0 | S34: 0 | T34: 0 | U34: 0 | V34: 0 | W34: 0 | X34: 0 | Y34: 0 | Z34: 0
A35: 01 05 | B35: 3AB2 | C35: 713 | D35: Nákup kontajnerov - Intenzif.tried. | E35: 9943.63 | F35: 0 | G35: 0 | H35: 0 | I35: 0 | J35: 0 | K35: 0 | L35: 0 | M35: 0 | N35: 0 | O35: 0 | P35: 0 | Q35: 0 | R35: 0 | S35: 0 | T35: 0 | U35: 0 | V35: 0 | W35: 0 | X35: 0 | Y35: 0 | Z35: 0
A36: 01 05 | B36: 1AA1 | C36: 717 | D36: Prístavba MŠ | E36: 29181.3 | F36: 0 | G36: 0 | H36: 0 | I36: 0 | J36: 0 | K36: 0 | L36: 0 | M36: 0 | N36: 0 | O36: 0 | P36: 0 | Q36: 0 | R36: 0 | S36: 0 | T36: 0 | U36: 0 | V36: 0 | W36: 0 | X36: 0 | Y36: 0 | Z36: 0
A37: 01 05 | B37: 1AA2 | C37: 717 | D37: Prístavba MŠ | E37: 3433.09 | F37: 0 | G37: 0 | H37: 0 | I37: 0 | J37: 0 | K37: 0 | L37: 0 | M37: 0 | N37: 0 | O37: 0 | P37: =IF(B37="Bežný rozpočet",G37,0) -> 0 | Q37: 0 | R37: =IF(B37="Kapitálový rozpočet",E37,0) -> 0 | S37: 0 | T37: =IF(B37="Kapitálový rozpočet",I37,0) -> 0 | U37: 0 | V37: 0 | W37: 0 | X37: 0 | Y37: 0 | Z37: 0
A38: 01 05 | B38: 41 | C38: 713 | D38: Učebne ZŠ - vybavenie | E38: 0 | F38: 43211 | G38: 0 | H38: 0 | I38: 0 | J38: 0 | K38: 0 | L38: 0 | M38: 0 | N38: 0 | O38: 0 | P38: 0 | Q38: 0 | R38: 0 | S38: 0 | T38: 0 | U38: 0 | V38: 0 | W38: 0 | X38: 0 | Y38: 0 | Z38: 0
A39: 01 05 | B39: 41 | C39: 713 | D39: Nákup detského ihriska | E39: 4610.1 | F39: 0 | G39: 0 | H39: 0 | I39: 0 | J39: 0 | K39: 0 | L39: 0 | M39: 0 | N39: 0 | O39: 0 | P39: 0 | Q39: 0 | R39: 0 | S39: 0 | T39: 0 | U39: 0 | V39: 0 | W39: 0 | X39: 0 | Y39: 0 | Z39: 0
A40: 01 05 | B40: 43 | C40: 713 | D40: Nákup detského ihriska | E40: 2273.1 | F40: 0 | G40: 0 | H40: 0 | I40: 0 | J40: 0 | K40: 0 | L40: 0 | M40: 0 | N40: 0 | O40: 0 | P40: 0 | Q40: 0 | R40: 0 | S40: 0 | T40: 0 | U40: 0 | V40: 0 | W40: 0 | X40: 0 | Y40: 0 | Z40: 0
A41: 01 05 | B41: 46 | C41: 717 | D41: Rekonštr. osvetlenia v telocvični ZŠ | E41: 0 | F41: 9329.36 | G41: 0 | H41: 0 | I41: 0 | J41: =SUM(H41:I41) -> 0 | K41: 0 | L41: 0 | M41: 0 | N41: 0 | O41: 0 | P41: 0 | Q41: 0 | R41: 0 | S41: 0 | T41: 0 | U41: 0 | V41: 0 | W41: 0 | X41: 0 | Y41: 0 | Z41: 0
A42: 01 05 | B42: Kapitálový rozpočet | E42: =SUM(E24:E41) -> 176445.51 | F42: =SUM(F24:F41) -> 58480.96 | G42: =SUM(G24:G41) -> 90100 | H42: =SUM(H24:H41) -> 69100 | I42: =SUM(I24:I41) -> 0 | J42: =SUM(H42:I42) -> 69100 | K42: =SUM(K24:K41) -> 3295.04 | L42: 4.768509407 | M42: 0 | N42: 0 | O42: 90100 | P42: 0 | Q42: =IF(B42="Kapitálový rozpočet",F42,0) -> 58480.96 | R42: 176445.51 | S42: 0 | T42: 0 | U42: 0 | V42: 69100 | W42: 0 | X42: 3295.04 | Y42: 0 | Z42: 69100
A43: 01 05 | B43: Príprava a implem.rozvoj.projektov spolu | E43: =SUM(E42,E23) -> 182458.78 | F43: =SUM(F42,F23) -> 72577.65 | G43: =SUM(G42,G23) -> 100100 | H43: =SUM(H42,H23) -> 79100 | I43: =SUM(I42,I23) -> 0 | J43: =SUM(H43:I43) -> 79100 | K43: =SUM(K42,K23) -> 7553.84 | L43: 9.549734513 | M43: 0 | N43: 0 | O43: 0 | P43: 0 | Q43: =IF(B43="Kapitálový rozpočet",F43,0) -> 0 | R43: 0 | S43: 0 | T43: 0 | U43: 0 | V43: 0 | W43: 0 | X43: 0 | Y43: 0 | Z43: 0
A44: 02 Program Propagácia a prezentácia obce | M44: 0 | N44: 0 | O44: 0 | P44: 0 | Q44: 0 | R44: 0 | S44: 0 | T44: 0 | U44: 0 | V44: 0 | W44: 0 | X44: 0 | Y44: 0 | Z44: 0
A45: 02 01 Propagácia a prezentácia obce | M45: 0 | N45: 0 | O45: 0 | P45: 0 | Q45: 0 | R45: 0 | S45: 0 | T45: 0 | U45: 0 | V45: 0 | W45: 0 | X45: 0 | Y45: 0 | Z45: 0
A46: 02 01 | B46: 41 | C46: 633 | D46: Materiál - propagačné predmety | E46: 2246.28 | F46: 0 | G46: 3000 | H46: 3000 | I46: 0 | J46: =SUM(H46:I46) -> 3000 | K46: 0 | L46: =vypocetPercent(J46,K46) -> 0 | M46: 0 | N46: 0 | O46: 0 | P46: 0 | Q46: 0 | R46: 0 | S46: 0 | T46: 0 | U46: 0 | V46: 0 | W46: 0 | X46: 0 | Y46: 0 | Z46: 0
A47: 02 01 | B47: 41 | C47: 635 | D47: Údržba softweru | E47: 540 | F47: 540 | G47: 540 | H47: 540 | I47: 0 | J47: =SUM(H47:I47) -> 540 | K47: 0 | L47: =vypocetPercent(J47,K47) -> 0 | M47: 0 | N47: 0 | O47: 0 | P47: 0 | Q47: 0 | R47: 0 | S47: 0 | T47: 0 | U47: 0 | V47: 0 | W47: 0 | X47: 0 | Y47: 0 | Z47: 0
A48: 02 01 | B48: 41 | C48: 637 | D48: Propagačné služby, inzercia | E48: 905.33 | F48: 913.06 | G48: 3000 | H48: 3000 | I48: 0 | J48: =SUM(H48:I48) -> 3000 | K48: 0 | L48: 0 | M48: 0 | N48: 0 | O48: 0 | P48: 0 | Q48: 0 | R48: 0 | S48: 0 | T48: 0 | U48: 0 | V48: 0 | W48: 0 | X48: 0 | Y48: 0 | Z48: 0
A49: 02 01 | B49: Bežný rozpočet | E49: =SUM(E46:E48) -> 3691.61 | F49: =SUM(F46:F48) -> 1453.06 | G49: =SUM(G46:G48) -> 6540 | H49: =SUM(H46:H48) -> 6540 | I49: =SUM(I46:I48) -> 0 | J49: =SUM(H49:I49) -> 6540 | K49: =SUM(K46:K48) -> 0 | L49: 0 | M49: 3691.61 | N49: 1453.06 | O49: 0 | P49: 6540 | Q49: 0 | R49: 0 | S49: 0 | T49: 0 | U49: 6540 | V49: 0 | W49: 0 | X49: 0 | Y49: 6540 | Z49: 0
A50: 03 Program Správa budov a majetku obce | M50: 0 | N50: 0 | O50: 0 | P50: 0 | Q50: 0 | R50: 0 | S50: 0 | T50: 0 | U50: 0 | V50: 0 | W50: 0 | X50: 0 | Y50: 0 | Z50: 0
A51: 03 01 Podprogram Prevádzka a údržba budov a zariadení | M51: 0 | N51: 0 | O51: 0 | P51: 0 | Q51: 0 | R51: 0 | S51: 0 | T51: 0 | U51: 0 | V51: 0 | W51: 0 | X51: 0 | Y51: 0 | Z51: 0
A52: 03 01 | B52: 41 | C52: 632 | D52: Energie - Zdrav.stred. | E52: 7547.95 | F52: 8823.42 | G52: 9400 | H52: 13500 | I52: 0 | J52: =SUM(H52:I52) -> 13500 | K52: 4928.7 | L52: =vypocetPercent(J52,K52) -> 36.50888889 | M52: 0 | N52: 0 | O52: 0 | P52: 0 | Q52: 0 | R52: 0 | S52: 0 | T52: 0 | U52: 0 | V52: 0 | W52: 0 | X52: 0 | Y52: 0 | Z52: 0
A53: 03 01 | B53: 41 | C53: 635 | D53: Údržba - Zdrav.stred. | E53: 151.2 | F53: 71.08 | G53: 2000 | H53: 3000 | I53: 0 | J53: =SUM(H53:I53) -> 3000 | K53: 1314.32 | L53: =vypocetPercent(J53,K53) -> 43.81066667 | M53: 0 | N53: 0 | O53: 0 | P53: 0 | Q53: 0 | R53: 0 | S53: 0 | T53: 0 | U53: 0 | V53: 0 | W53: 0 | X53: 0 | Y53: 0 | Z53: 0
A54: 03 01 | B54: 41 | C54: 637 | D54: Služby - Zdr.stre. | E54: 189.84 | F54: 0 | G54: 0 | H54: 0 | I54: 0 | J54: 0 | K54: 0 | L54: 0 | M54: 0 | N54: 0 | O54: 0 | P54: 0 | Q54: 0 | R54: 0 | S54: 0 | T54: 0 | U54: 0 | V54: 0 | W54: 0 | X54: 0 | Y54: 0 | Z54: 0
A55: 03 01 | B55: 41 | C55: 632 | D55: Energie Štúr.,Komen.,Pod Lip.,pon.. | E55: 0 | F55: 1583.1 | G55: 2000 | H55: 2000 | I55: 0 | J55: 2000 | K55: 820.39 | L55: 41.0195 | M55: 0 | N55: 0 | O55: 0 | P55: 0 | Q55: 0 | R55: 0 | S55: 0 | T55: 0 | U55: 0 | V55: 0 | W55: 0 | X55: 0 | Y55: 0 | Z55: 0
A56: 03 01 | B56: 41 | C56: 635 | D56: Výmena okien v átriu v ZŠ, učebne | E56: 72087.18 | F56: 0 | G56: 0 | H56: 0 | I56: 0 | J56: 0 | K56: 0 | L56: 0 | M56: 0 | N56: 0 | O56: 0 | P56: 0 | Q56: 0 | R56: 0 | S56: 0 | T56: 0 | U56: 0 | V56: 0 | W56: 0 | X56: 0 | Y56: 0 | Z56: 0
A57: 03 01 | B57: 41 | C57: 635 | D57: údržba v ZŠ s MŠ | E57: 1446.73 | F57: 6035.08 | G57: 0 | H57: 0 | I57: 0 | J57: 0 | K57: 0 | L57: 0 | M57: 0 | N57: 0 | O57: 0 | P57: 0 | Q57: 0 | R57: 0 | S57: 0 | T57: 0 | U57: 0 | V57: 0 | W57: 0 | X57: 0 | Y57: 0 | Z57: 0
A58: 03 01 | B58: 41 | C58: 632 | D58: Energie - býv.MŠ | E58: 10455.1 | F58: 11934.77 | G58: 12200 | H58: 12730 | I58: 0 | J58: 12730 | K58: 6138.74 | L58: 48.22262372 | M58: 0 | N58: 0 | O58: 0 | P58: 0 | Q58: 0 | R58: 0 | S58: 0 | T58: 0 | U58: 0 | V58: 0 | W58: 0 | X58: 0 | Y58: 0 | Z58: 0
A59: 03 01 | B59: 41 | C59: 635 | D59: Údržba býv.MŠ | E59: 360.91 | F59: 142.74 | G59: 500 | H59: 500 | I59: 0 | J59: 500 | K59: 362.51 | L59: 72.502 | M59: 0 | N59: 0 | O59: 0 | P59: 0 | Q59: 0 | R59: 0 | S59: 0 | T59: 0 | U59: 0 | V59: 0 | W59: 0 | X59: 0 | Y59: 0 | Z59: 0
A60: 03 01 | B60: 41 | C60: 637 | D60: Služby - ZŠ s MŠ | E60: 0 | F60: 3735.3 | G60: 0 | H60: 400 | I60: 0 | J60: 400 | K60: 274.71 | L60: 68.6775 | M60: 0 | N60: 0 | O60: 0 | P60: 0 | Q60: 0 | R60: 0 | S60: 0 | T60: 0 | U60: 0 | V60: 0 | W60: 0 | X60: 0 | Y60: 0 | Z60: 0
A61: 03 01 | B61: 41 | C61: 632 | D61: Energie - posilovňa | E61: 0 | F61: 522.76 | G61: 1600 | H61: 1600 | I61: 0 | J61: 1600 | K61: 579 | L61: 36.1875 | M61: 0 | N61: 0 | O61: 0 | P61: 0 | Q61: 0 | R61: 0 | S61: 0 | T61: 0 | U61: 0 | V61: 0 | W61: 0 | X61: 0 | Y61: 0 | Z61: 0
A62: 03 01 | B62: 41 | C62: 635 | D62: Údržba - posilovňa | E62: 0 | F62: 3249.2 | G62: 0 | H62: 0 | I62: 0 | J62: 0 | K62: 0 | L62: 0 | M62: 0 | N62: 0 | O62: 0 | P62: 0 | Q62: 0 | R62: 0 | S62: 0 | T62: 0 | U62: 0 | V62: 0 | W62: 0 | X62: 0 | Y62: 0 | Z62: 0
A63: 03 01 | B63: 41 | C63: 637 | D63: Všeobecné služby - kanalizácia | E63: 0 | F63: 0 | G63: 0 | H63: 10500 | I63: 0 | J63: 10500 | K63: 10372.92 | L63: 98.78971429 | M63: 0 | N63: 0 | O63: 0 | P63: 0 | Q63: 0 | R63: 0 | S63: 0 | T63: 0 | U63: 0 | V63: 0 | W63: 0 | X63: 0 | Y63: 0 | Z63: 0
A64: 03 01 | B64: 41 | C64: 632 | D64: Energie - býv.OP | E64: 0 | F64: 483.21 | G64: 500 | H64: 500 | I64: 0 | J64: 500 | K64: 248.43 | L64: 49.686 | M64: 0 | N64: 0 | O64: 0 | P64: 0 | Q64: 0 | R64: 0 | S64: 0 | T64: 0 | U64: 0 | V64: 0 | W64: 0 | X64: 0 | Y64: 0 | Z64: 0
A65: 03 01 | B65: 41 | C65: 632 | D65: Energie - býv.zberný dvor | E65: 0 | F65: 0 | G65: 3000 | H65: 3705 | I65: 0 | J65: 3705 | K65: 1363.64 | L65: 36.80539811 | M65: 0 | N65: 0 | O65: 0 | P65: 0 | Q65: 0 | R65: 0 | S65: 0 | U65: 0 | V65: 0 | W65: 0 | X65: 0 | Y65: 0 | Z65: 0
A66: 03 01 | B66: 41 | C66: 635 | D66: Údržba - býv.zberný dvor | E66: 0 | F66: 0 | G66: 5000 | H66: 5000 | I66: 0 | J66: 5000 | K66: 0 | L66: 0 | M66: 0 | N66: 0 | O66: 0 | P66: 0 | Q66: 0 | R66: 0 | S66: 0 | U66: 0 | V66: 0 | W66: 0 | X66: 0 | Y66: 0 | Z66: 0
A67: 03 01 | B67: 41 | C67: 637 | D67: Služby - poistenie | E67: 5065.93 | F67: 3343.65 | G67: 3350 | H67: 3350 | I67: 0 | J67: 3350 | K67: 3343.65 | L67: 99.81044776 | M67: 0 | N67: 0 | O67: 0 | P67: 0 | Q67: 0 | R67: 0 | S67: 0 | T67: 0 | U67: 0 | V67: 0 | W67: 0 | X67: 0 | Y67: 0 | Z67: 0
A68: 03 01 | B68: Bežný rozpočet | E68: =SUM(E52:E67) -> 97304.84 | F68: =SUM(F52:F67) -> 39924.31 | G68: =SUM(G52:G67) -> 39550 | H68: =SUM(H52:H67) -> 56785 | I68: =SUM(I52:I67) -> 0 | J68: =SUM(H68:I68) -> 56785 | K68: =SUM(K52:K67) -> 29747.01 | L68: 52.38533063 | M68: 97304.84 | N68: 39924.31 | O68: 0 | P68: 39550 | Q68: 0 | R68: 0 | S68: 0 | T68: 0 | U68: 56785 | V68: 0 | W68: 29747.01 | X68: 0 | Y68: 56785 | Z68: 0
A69: 03 02 Podprogram Priemyselný park | M69: 0 | N69: 0 | O69: =IF(B69="Kapitálový rozpočet",G69,0) -> 0 | P69: 0 | Q69: 0 | R69: 0 | S69: 0 | T69: 0 | U69: 0 | V69: 0 | W69: 0 | X69: 0 | Y69: 0 | Z69: 0
A70: 03 02 | B70: 20 | C70: 610 | D70: Mzdy, platy, OON | E70: 0 | F70: 917.71 | G70: 0 | H70: 0 | I70: 0 | J70: =SUM(H70:I70) -> 0 | K70: 0 | L70: =vypocetPercent(J70,K70) -> 0 | M70: 0 | N70: 0 | O70: 0 | Q70: 0 | S70: 0 | U70: 0 | V70: 0 | W70: 0 | X70: 0 | Y70: 0 | Z70: 0
A71: 03 02 | B71: 20 | C71: 620 | D71: Poistné a príspevky | E71: 0 | F71: 281.79 | G71: 0 | H71: 0 | I71: 0 | J71: 0 | K71: 0 | L71: 0 | M71: =IF(B71="Bežný rozpočet",E71,0) -> 0 | N71: 0 | O71: 0 | Q71: 0 | S71: 0 | U71: 0 | V71: 0 | W71: 0 | X71: 0 | Y71: 0 | Z71: 0
A72: 03 02 | B72: 20 | C72: Finančné aktíva | E72: =SUM(E70:E71) -> 0 | F72: =SUM(F70:F71) -> 1199.5 | G72: =SUM(G70:G71) -> 0 | H72: 0 | I72: 0 | J72: 0 | K72: =SUM(K70:K71) -> 0 | L72: 0 | M72: 0 | N72: 0 | O72: 0 | Q72: 0 | S72: =IF(B72="Bežný rozpočet",I72,0) -> 0 | U72: =IF(B72="Bežný rozpočet",J72,0) -> 0 | V72: 0 | W72: =IF(B72="Bežný rozpočet",K72,0) -> 0 | X72: =IF(B72="Kapitálový rozpočet",K72,0) -> 0 | Y72: =IF(B72="Bežný rozpočet",H72,0) -> 0 | Z72: =IF(B72="Kapitálový rozpočet",J72,0) -> 0
A73: 03 02 | B73: 41 | C73: 610 | D73: Mzdy, platy, OON | E73: 2692.14 | F73: 5542.02 | G73: 8300 | H73: 7840.15 | I73: 0 | J73: =SUM(H73:I73) -> 7840.15 | K73: 2776.42 | L73: =vypocetPercent(J73,K73) -> 35.41284287 | M73: 0 | N73: 0 | O73: 0 | P73: =IF(B73="Bežný rozpočet",G73,0) -> 0 | Q73: 0 | R73: =IF(B73="Kapitálový rozpočet",E73,0) -> 0 | S73: 0 | T73: =IF(B73="Kapitálový rozpočet",I73,0) -> 0 | U73: 0 | V73: 0 | W73: 0 | X73: 0 | Y73: 0 | Z73: 0
A74: 03 02 | B74: 41 | C74: 620 | D74: Poistné a príspevky | E74: 1030.4 | F74: 1854.21 | G74: 3100 | H74: 3100 | I74: 0 | J74: =SUM(H74:I74) -> 3100 | K74: 916.2 | L74: =vypocetPercent(J74,K74) -> 29.55483871 | M74: 0 | N74: 0 | O74: 0 | P74: 0 | Q74: 0 | R74: 0 | S74: 0 | T74: 0 | U74: 0 | V74: 0 | W74: 0 | X74: 0 | Y74: 0 | Z74: 0
A75: 03 02 | B75: 41 | C75: 632 | D75: Energie | E75: 1882.82 | F75: 1983.97 | G75: 2000 | H75: 2000 | I75: 0 | J75: 2000 | K75: 1438.36 | L75: 71.918 | M75: 0 | N75: 0 | O75: 0 | P75: 0 | Q75: 0 | R75: 0 | S75: 0 | T75: 0 | U75: 0 | V75: =IF(B75="Kapitálový rozpočet",H75,0) -> 0 | W75: 0 | X75: 0 | Y75: 0 | Z75: 0
A76: 03 02 | B76: 41 | C76: 635 | D76: Údržba objektov a zariadení | E76: 1617.28 | F76: 0 | G76: 2000 | H76: 2000 | I76: 0 | J76: 2000 | K76: 0 | L76: 0 | M76: 0 | N76: =IF(B76="Bežný rozpočet",F76,0) -> 0 | O76: 0 | P76: 0 | Q76: 0 | R76: 0 | S76: 0 | T76: 0 | U76: 0 | V76: 0 | W76: 0 | X76: 0 | Y76: 0 | Z76: 0
A77: 03 02 | B77: 41 | C77: 637 | D77: Služby - poistné | E77: 3613.85 | F77: 3138.53 | G77: 3150 | H77: 3150 | I77: 0 | J77: 3150 | K77: 0 | L77: 0 | M77: 0 | N77: 0 | O77: 0 | P77: 0 | Q77: 0 | R77: 0 | S77: 0 | T77: 0 | U77: 0 | V77: 0 | W77: 0 | X77: 0 | Y77: 0 | Z77: 0
A78: 03 02 | B78: 41 | C78: 637 | D78: Služby a vývoz TKO Otolift | E78: 1046.63 | F78: 2011.84 | G78: 2500 | H78: 2500 | I78: 0 | J78: 2500 | K78: 656.98 | L78: 26.2792 | M78: 0 | N78: 0 | O78: 0 | P78: 0 | Q78: 0 | R78: 0 | S78: 0 | T78: 0 | U78: 0 | V78: 0 | W78: 0 | X78: 0 | Y78: 0 | Z78: 0
A79: 03 02 | B79: 41 | C79: 642 | D79: Bežné transf. na ND | E79: 207.76 | F79: 628.76 | G79: 0 | H79: 459.85 | I79: 0 | J79: 459.85 | K79: 387.73 | L79: 84.31662499 | M79: 0 | N79: 0 | O79: 0 | P79: 0 | Q79: 0 | R79: 0 | S79: 0 | T79: 0 | U79: 0 | V79: 0 | W79: 0 | X79: 0 | Y79: 0 | Z79: 0
A80: 03 02 | B80: Bežný rozpočet | E80: =SUM(E73:E79,E72) -> 12090.88 | F80: =SUM(F73:F79,F72) -> 16358.83 | G80: =SUM(G73:G79,G72) -> 21050 | H80: =SUM(H73:H79,H72) -> 21050 | I80: =SUM(I73:I79,I72) -> 0 | J80: 21050 | K80: =SUM(K73:K79,K72) -> 6175.69 | L80: 29.33819477 | M80: 12090.88 | N80: 16358.83 | O80: 0 | P80: 21050 | Q80: 0 | R80: 0 | S80: 0 | T80: 0 | U80: 21050 | V80: 0 | W80: 6175.69 | X80: 0 | Y80: 21050 | Z80: 0
A81: 04 Program Služby občanom | M81: 0 | N81: 0 | O81: 0 | P81: 0 | Q81: 0 | R81: 0 | S81: 0 | T81: 0 | U81: 0 | V81: 0 | W81: 0 | X81: 0 | Y81: 0 | Z81: 0
A82: 04 01 Podprogram Občianske obrady, spoločenské udalosti | M82: 0 | N82: 0 | O82: 0 | P82: 0 | Q82: 0 | R82: 0 | S82: 0 | T82: 0 | U82: 0 | V82: 0 | W82: 0 | X82: 0 | Y82: 0 | Z82: 0
A83: 04 01 | B83: 41 | C83: 633 | D83: Materál - ZPOZ | E83: 1391.58 | F83: 320 | G83: 1000 | H83: 1000 | I83: 0 | J83: =SUM(H83:I83) -> 1000 | K83: 60.8 | L83: =vypocetPercent(J83,K83) -> 6.08 | M83: 0 | N83: 0 | O83: 0 | P83: 0 | Q83: 0 | R83: 0 | S83: 0 | T83: 0 | U83: 0 | V83: 0 | W83: 0 | X83: 0 | Y83: 0 | Z83: 0
A84: 04 01 | B84: 41 | C84: 642 | D84: Transféry jednotl. - uvítanie detí | E84: 1200 | F84: 1300 | G84: 1500 | H84: 1500 | I84: 0 | J84: =SUM(H84:I84) -> 1500 | K84: 0 | L84: =vypocetPercent(J84,K84) -> 0 | M84: 0 | N84: 0 | O84: 0 | P84: 0 | Q84: 0 | R84: 0 | S84: 0 | T84: 0 | U84: 0 | V84: 0 | W84: 0 | X84: 0 | Y84: 0 | Z84: 0
A85: 04 01 | B85: Bežný rozpočet | E85: =SUM(E83:E84) -> 2591.58 | F85: =SUM(F83:F84) -> 1620 | G85: =SUM(G83:G84) -> 2500 | H85: =SUM(H83:H84) -> 2500 | I85: =SUM(I83:I84) -> 0 | J85: =SUM(H85:I85) -> 2500 | K85: =SUM(K83:K84) -> 60.8 | L85: 2.432 | M85: 2591.58 | N85: 1620 | O85: 0 | P85: 2500 | Q85: 0 | R85: 0 | S85: 0 | T85: 0 | U85: 2500 | V85: 0 | W85: 60.8 | X85: 0 | Y85: 2500 | Z85: 0
A86: 04 02 Podprogram Matrika | M86: 0 | N86: 0 | O86: 0 | P86: 0 | Q86: 0 | R86: 0 | S86: 0 | T86: 0 | U86: 0 | V86: 0 | W86: 0 | X86: 0 | Y86: 0 | Z86: 0
A87: 04 02 | B87: 111 | C87: 610 | D87: Mzdy, platy, OON | E87: 4272 | F87: 4774.93 | G87: 3986.4 | H87: 3986.4 | I87: 0 | J87: =SUM(H87:I87) -> 3986.4 | K87: 1993.2 | L87: =vypocetPercent(J87,K87) -> 50 | M87: 0 | N87: 0 | O87: 0 | P87: 0 | Q87: 0 | R87: 0 | S87: 0 | T87: 0 | U87: 0 | V87: 0 | W87: 0 | X87: 0 | Y87: 0 | Z87: 0
A88: 04 02 | B88: 111 | C88: 620 | D88: Poistné a príspevky | E88: 1493.08 | F88: 1668.79 | G88: 1393.2 | H88: 1393.2 | I88: 0 | J88: =SUM(H88:I88) -> 1393.2 | K88: 696.6 | L88: =vypocetPercent(J88,K88) -> 50 | M88: 0 | N88: 0 | O88: 0 | P88: 0 | Q88: 0 | R88: 0 | S88: 0 | T88: 0 | U88: 0 | V88: 0 | W88: 0 | X88: 0 | Y88: 0 | Z88: 0
A89: 04 02 | B89: 111 | C89: 632 | D89: Energie | E89: 550 | F89: 542 | G89: 542 | H89: 70.6 | I89: -28.11 | J89: 42.49 | K89: 0 | L89: 0 | M89: 0 | N89: 0 | O89: 0 | P89: 0 | Q89: 0 | R89: 0 | S89: 0 | T89: 0 | U89: 0 | V89: 0 | W89: 0 | X89: 0 | Y89: 0 | Z89: 0
A90: 04 02 | B90: 111 | C90: 633 | D90: Materiál | E90: 97.07 | F90: 139.07 | G90: 105.07 | H90: 118.36 | I90: 48.82 | J90: 167.18 | K90: 138.56 | L90: 82.88072736 | M90: 0 | N90: 0 | O90: 0 | P90: 0 | Q90: 0 | R90: 0 | S90: 0 | T90: 0 | U90: 0 | V90: 0 | W90: 0 | X90: 0 | Y90: 0 | Z90: 0
A91: 04 02 | B91: 111 | C91: 637 | D91: Služby | E91: 50 | F91: 0 | G91: 34 | H91: 20.71 | I91: -20.71 | J91: 0 | K91: 0 | L91: 0 | M91: 0 | N91: 0 | O91: 0 | P91: 0 | Q91: 0 | R91: 0 | S91: 0 | T91: 0 | U91: 0 | V91: 0 | W91: 0 | X91: 0 | Y91: 0 | Z91: 0
A92: 04 02 | B92: 111 | C92: 642 | D92: Bežné transf. na ošatné | E92: 99.58 | F92: 115.58 | G92: 115.58 | H92: 115.58 | I92: 0 | J92: 115.58 | K92: 16 | L92: 13.84322547 | M92: 0 | N92: 0 | O92: 0 | P92: 0 | Q92: 0 | R92: 0 | S92: 0 | T92: 0 | U92: 0 | V92: 0 | W92: 0 | X92: 0 | Y92: 0 | Z92: 0
A93: 04 02 | B93: 111 | C93: Zdroje zo štátneho rozpočtu | E93: =SUM(E87:E92) -> 6561.73 | F93: =SUM(F87:F92) -> 7240.37 | G93: =SUM(G87:G92) -> 6176.25 | H93: =SUM(H87:H92) -> 5704.85 | I93: =SUM(I87:I92) -> 0 | J93: =SUM(H93:I93) -> 5704.85 | K93: =SUM(K87:K92) -> 2844.36 | L93: 49.85862906 | M93: 0 | N93: 0 | O93: 0 | P93: 0 | Q93: 0 | R93: 0 | S93: 0 | T93: 0 | U93: 0 | V93: 0 | W93: 0 | X93: 0 | Y93: 0 | Z93: 0
A94: 04 02 | B94: 41 | C94: 610 | D94: Mzdy, platy, OON | E94: 1440 | F94: 0 | G94: 0 | H94: 0 | I94: 0 | J94: 0 | K94: 0 | L94: 0 | M94: 0 | N94: 0 | O94: 0 | P94: 0 | Q94: 0 | R94: 0 | S94: 0 | T94: 0 | U94: 0 | V94: 0 | W94: 0 | X94: 0 | Y94: 0 | Z94: 0
A95: 04 02 | B95: 41 | C95: 620 | D95: Poistné a príspevky | E95: 504 | F95: 0 | G95: 0 | H95: 0 | I95: 0 | J95: 0 | K95: 0 | L95: 0 | M95: 0 | N95: 0 | O95: 0 | P95: 0 | Q95: 0 | R95: 0 | S95: 0 | T95: 0 | U95: 0 | V95: 0 | W95: 0 | X95: 0 | Y95: 0 | Z95: 0
A96: 04 02 | B96: 41 | C96: 631 | D96: Cestovné náhrady | E96: 61 | F96: 0 | G96: 0 | H96: 0 | I96: 0 | J96: 0 | K96: 0 | L96: 0 | M96: 0 | N96: 0 | O96: 0 | P96: 0 | Q96: 0 | R96: 0 | S96: 0 | T96: 0 | U96: 0 | V96: 0 | W96: 0 | X96: 0 | Y96: 0 | Z96: 0
A97: 04 02 | B97: 41 | C97: 633 | D97: Materiál | E97: 15 | F97: 0 | G97: 0 | H97: 0 | I97: 0 | J97: 0 | K97: 0 | L97: 0 | M97: 0 | N97: 0 | O97: 0 | P97: 0 | Q97: 0 | R97: 0 | S97: 0 | T97: 0 | U97: 0 | V97: 0 | W97: 0 | X97: 0 | Y97: 0 | Z97: 0
A98: 04 02 | B98: 41 | C98: 637 | D98: Služby - školenie | E98: 185 | F98: 0 | G98: 0 | H98: 0 | I98: 0 | J98: 0 | K98: 0 | L98: 0 | M98: 0 | N98: 0 | O98: 0 | P98: 0 | Q98: 0 | R98: 0 | S98: 0 | T98: 0 | U98: 0 | V98: 0 | W98: 0 | X98: 0 | Y98: 0 | Z98: 0
A99: 04 02 | B99: 41 | C99: Vlastné zdroje | E99: =SUM(E94:E98) -> 2205 | F99: =SUM(F94:F98) -> 0 | G99: =SUM(G94:G98) -> 0 | H99: =SUM(H94:H98) -> 0 | I99: =SUM(I94:I98) -> 0 | J99: 0 | K99: =SUM(K94:K98) -> 0 | L99: 0 | M99: 0 | N99: 0 | O99: 0 | P99: 0 | Q99: 0 | R99: 0 | S99: 0 | T99: 0 | U99: 0 | V99: 0 | W99: 0 | X99: 0 | Y99: 0 | Z99: 0
A100: 04 02 | B100: Bežný rozpočet | E100: =SUM(E99,E93) -> 8766.73 | F100: =SUM(F99,F93) -> 7240.37 | G100: =SUM(G99,G93) -> 6176.25 | H100: =SUM(H99,H93) -> 5704.85 | I100: =SUM(I99,I93) -> 0 | J100: 5704.85 | K100: =SUM(K99,K93) -> 2844.36 | L100: 49.85862906 | M100: 8766.73 | N100: 7240.37 | O100: 0 | P100: 6176.25 | Q100: 0 | R100: 0 | S100: 0 | T100: 0 | U100: 5704.85 | V100: 0 | W100: 2844.36 | X100: 0 | Y100: 5704.85 | Z100: 0
A101: 04 03 Podprogram Hlásenie pobytu občanov, register obyvateľstva a adries | M101: 0 | N101: 0 | O101: 0 | P101: 0 | Q101: 0 | R101: 0 | S101: 0 | T101: 0 | U101: 0 | V101: 0 | W101: 0 | X101: 0 | Y101: 0 | Z101: 0
A102: 04 03 | B102: 111 | C102: 610 | D102: Mzdy, platy-hlás.pob.a reg.obyv | E102: 1037.56 | F102: 1028.27 | G102: 0 | H102: 1024.36 | I102: 0 | J102: =SUM(H102:I102) -> 1024.36 | K102: 512.18 | L102: =vypocetPercent(J102,K102) -> 50 | M102: 0 | N102: 0 | O102: 0 | P102: 0 | Q102: 0 | R102: 0 | S102: 0 | T102: 0 | U102: 0 | V102: 0 | W102: 0 | X102: 0 | Y102: 0 | Z102: 0
A103: 04 03 | B103: 111 | C103: 620 | D103: Poistné a príspevky | E103: 362.63 | F103: 359.38 | G103: 0 | H103: 358.01 | I103: 0 | J103: 358.01 | K103: 178.98 | L103: =vypocetPercent(J103,K103) -> 49.99301695 | M103: 0 | N103: 0 | O103: 0 | P103: 0 | Q103: 0 | R103: 0 | S103: 0 | T103: 0 | U103: 0 | V103: 0 | W103: 0 | X103: 0 | Y103: 0 | Z103: 0
A104: 04 03 | B104: 41 | C104: 633 | D104: Materiál | E104: 25 | F104: 953.26 | G104: 0 | H104: 0 | I104: 0 | J104: 0 | K104: 0 | L104: 0 | M104: 0 | N104: 0 | O104: 0 | P104: =IF(B104="Bežný rozpočet",G104,0) -> 0 | Q104: 0 | R104: =IF(B104="Kapitálový rozpočet",E104,0) -> 0 | S104: 0 | T104: 0 | U104: 0 | V104: 0 | W104: 0 | X104: 0 | Y104: 0 | Z104: 0
A105: 04 03 | B105: 111 | C105: 610 | D105: Mzdy, platy-register adries | E105: 27.57 | F105: 45.35 | G105: 0 | H105: 58.39 | I105: 0 | J105: 58.39 | K105: 29.2 | L105: 50.00856311 | M105: 0 | N105: 0 | O105: 0 | P105: 0 | Q105: 0 | R105: 0 | S105: 0 | T105: 0 | U105: 0 | V105: 0 | W105: 0 | X105: 0 | Y105: 0 | Z105: 0
A106: 04 03 | B106: 111 | C106: 620 | D106: Poistné a príspevky | E106: 9.63 | F106: 15.85 | G106: 0 | H106: 20.41 | I106: 0 | J106: 20.41 | K106: 10.2 | L106: 49.9755022 | M106: 0 | N106: 0 | O106: 0 | P106: 0 | Q106: 0 | R106: 0 | S106: 0 | T106: 0 | U106: 0 | V106: 0 | W106: 0 | X106: 0 | Y106: 0 | Z106: 0
A107: 04 03 | B107: Bežný rozpočet | E107: =SUM(E102:E106) -> 1462.39 | F107: =SUM(F102:F106) -> 2402.11 | G107: =SUM(G102:G106) -> 0 | H107: =SUM(H102:H106) -> 1461.17 | I107: =SUM(I102:I106) -> 0 | J107: 1461.17 | K107: =SUM(K102:K106) -> 730.56 | L107: 49.99828904 | M107: 1462.39 | N107: 2402.11 | O107: 0 | P107: 0 | Q107: 0 | R107: 0 | S107: 0 | T107: 0 | U107: 1461.17 | V107: 0 | W107: 730.56 | X107: 0 | Y107: 1461.17 | Z107: 0
A108: 04 04 Podprogram Správa a údržba cintorínov | M108: 0 | N108: 0 | O108: 0 | P108: 0 | Q108: =IF(B108="Kapitálový rozpočet",F108,0) -> 0 | R108: 0 | S108: 0 | T108: 0 | U108: 0 | V108: 0 | W108: 0 | X108: 0 | Y108: 0 | Z108: 0
A109: 04 04 | B109: 111 | C109: 610 | D109: Mzdy, platy - vojnové hroby | E109: 31 | F109: 148.96 | G109: 0 | H109: 159.17 | I109: 0 | J109: =SUM(H109:I109) -> 159.17 | K109: 103.59 | L109: =vypocetPercent(J109,K109) -> 65.08135955 | M109: 0 | N109: 0 | O109: 0 | P109: 0 | Q109: 0 | R109: 0 | S109: 0 | T109: 0 | U109: 0 | V109: 0 | W109: 0 | X109: 0 | Y109: 0 | Z109: 0
A110: 04 04 | B110: 111 | C110: 620 | D110: Poistné a príspevky | E110: 8.54 | F110: 51.02 | G110: 0 | H110: 55.63 | I110: 0 | J110: =SUM(H110:I110) -> 55.63 | K110: 36.21 | L110: =vypocetPercent(J110,K110) -> 65.09077836 | M110: 0 | N110: 0 | O110: 0 | P110: 0 | Q110: 0 | R110: 0 | S110: 0 | T110: 0 | U110: 0 | V110: 0 | W110: 0 | X110: 0 | Y110: 0 | Z110: 0
A111: 04 04 | B111: 111 | C111: 633 | D111: Materiál | E111: 139.8 | F111: 0 | G111: 0 | H111: 0 | I111: 0 | J111: 0 | K111: 0 | L111: 0 | M111: 0 | N111: 0 | O111: 0 | P111: 0 | Q111: 0 | R111: 0 | S111: 0 | T111: 0 | U111: 0 | V111: 0 | W111: 0 | X111: 0 | Y111: 0 | Z111: 0
A112: 04 04 | B112: 111 | C112: Zo štátneho rozpočtu | E112: =SUM(E109:E111) -> 179.34 | F112: =SUM(F109:F111) -> 199.98 | G112: =SUM(G109:G111) -> 0 | H112: =SUM(H109:H111) -> 214.8 | I112: =SUM(I109:I111) -> 0 | J112: 214.8 | K112: =SUM(K109:K111) -> 139.8 | L112: 65.08379888 | M112: 0 | N112: 0 | O112: 0 | P112: 0 | Q112: 0 | R112: 0 | S112: 0 | T112: 0 | U112: 0 | V112: 0 | W112: 0 | X112: 0 | Y112: 0 | Z112: 0
A113: 04 04 | B113: 41 | C113: 632 | D113: Energie - Dom smútku | E113: 3441.96 | F113: 3965.12 | G113: 3800 | H113: 4800 | I113: 0 | J113: 4800 | K113: 3074.76 | L113: 64.0575 | M113: 0 | N113: 0 | O113: 0 | P113: 0 | Q113: 0 | R113: 0 | S113: 0 | T113: 0 | U113: 0 | V113: 0 | W113: 0 | X113: 0 | Y113: 0 | Z113: 0
A114: 04 04 | B114: 41 | C114: 633 | D114: Materiál | E114: 612.48 | F114: 147.63 | G114: 1700 | H114: 1700 | I114: 0 | J114: 1700 | K114: 380.89 | L114: 22.40529412 | M114: 0 | N114: 0 | O114: 0 | P114: 0 | Q114: 0 | R114: 0 | S114: 0 | T114: 0 | U114: 0 | V114: 0 | W114: 0 | X114: 0 | Y114: 0 | Z114: 0
A115: 04 04 | B115: 41 | C115: 635 | D115: Údržba cintorína | E115: 235.48 | F115: 362.18 | G115: 2000 | H115: 2000 | I115: 0 | J115: 2000 | K115: 0 | L115: 0 | M115: 0 | N115: 0 | O115: 0 | P115: 0 | Q115: 0 | R115: 0 | S115: 0 | T115: 0 | U115: 0 | V115: 0 | W115: 0 | X115: 0 | Y115: 0 | Z115: 0
A116: 04 04 | B116: 41 | C116: 636 | D116: Nájomné ekotoaleta | E116: 0 | F116: 0 | G116: 0 | H116: 792 | I116: 0 | J116: 792 | K116: 288 | L116: 36.36363636 | M116: 0 | N116: 0 | O116: 0 | P116: 0 | Q116: 0 | R116: 0 | S116: 0 | T116: 0 | U116: 0 | V116: 0 | W116: 0 | X116: 0 | Y116: 0 | Z116: 0
A117: 04 04 | B117: 41 | C117: 637 | D117: Služby | E117: 360 | F117: 125.76 | G117: 500 | H117: 500 | I117: 0 | J117: 500 | K117: 273.75 | L117: 54.75 | M117: 0 | N117: 0 | O117: 0 | P117: 0 | Q117: 0 | R117: 0 | S117: 0 | T117: 0 | U117: 0 | V117: 0 | W117: 0 | X117: 0 | Y117: 0 | Z117: 0
A118: 04 04 | B118: Bežný rozpočet | E118: =SUM(E113:E117,E112,) -> 4829.26 | F118: =SUM(F113:F117,F112,) -> 4800.67 | G118: =SUM(G113:G117,G112,) -> 8000 | H118: =SUM(H113:H117,H112,) -> 10006.8 | I118: =SUM(I113:I117,I112,) -> 0 | J118: 10006.8 | K118: =SUM(K113:K117,K112,) -> 4157.2 | L118: 41.54375025 | M118: 4829.26 | N118: 4800.67 | O118: 0 | P118: 8000 | Q118: 0 | R118: 0 | S118: 0 | T118: 0 | U118: 10006.8 | V118: 0 | W118: 4157.2 | X118: 0 | Y118: 10006.8 | Z118: 0
A119: 04 04 | B119: 46 | C119: 717 | D119: Realizácia chodníka | E119: 0 | F119: 0 | G119: 0 | H119: 46000 | I119: 0 | J119: 46000 | K119: 0 | L119: 0 | M119: 0 | N119: 0 | O119: 0 | P119: 0 | Q119: 0 | R119: 0 | S119: 0 | T119: 0 | U119: 0 | V119: 0 | W119: 0 | X119: 0 | Y119: 0 | Z119: 0
A120: 04 04 | B120: 46 | C120: 717 | D120: Realizácia prístrešku | E120: 0 | F120: 0 | G120: 15000 | H120: 15000 | I120: 0 | J120: 15000 | K120: 0 | L120: 0 | M120: 0 | N120: 0 | O120: 0 | P120: 0 | Q120: 0 | R120: 0 | S120: 0 | T120: 0 | U120: 0 | V120: 0 | W120: 0 | X120: 0 | Y120: 0 | Z120: 0
A121: 04 04 | B121: Kapitálový rozpočet | E121: =SUM(E119:E120) -> 0 | F121: =SUM(F119:F120) -> 0 | G121: =SUM(G119:G120) -> 15000 | H121: =SUM(H119:H120) -> 61000 | I121: =SUM(I119:I120) -> 0 | J121: 61000 | K121: =SUM(K119:K120) -> 0 | L121: 0 | M121: 0 | N121: 0 | O121: 15000 | P121: 0 | Q121: 0 | R121: 0 | S121: 0 | T121: 0 | U121: 0 | V121: 61000 | W121: 0 | X121: 0 | Y121: 0 | Z121: 61000
A122: 04 04 | B122: Cintoríny spolu | E122: =SUM(E121,E118) -> 4829.26 | F122: =SUM(F121,F118) -> 4800.67 | G122: =SUM(G121,G118) -> 23000 | H122: =SUM(H121,H118) -> 71006.8 | I122: =SUM(I121,I118) -> 0 | J122: 71006.8 | K122: =SUM(K121,K118) -> 4157.2 | L122: 5.854650541 | M122: 0 | N122: 0 | O122: 0 | P122: 0 | Q122: 0 | R122: 0 | S122: 0 | T122: 0 | U122: 0 | V122: 0 | W122: 0 | X122: 0 | Y122: 0 | Z122: 0
A123: 04 05 Podprogram Miestny rozhlas | M123: 0 | N123: 0 | O123: 0 | P123: 0 | Q123: 0 | R123: 0 | S123: 0 | T123: 0 | U123: 0 | V123: 0 | W123: 0 | X123: 0 | Y123: 0 | Z123: 0
A124: 04 05 | B124: 41 | C124: 633 | D124: Materiál | E124: 345.96 | F124: 1125.3 | G124: 1000 | H124: 1000 | I124: 0 | J124: =SUM(H124:I124) -> 1000 | K124: 0 | L124: =vypocetPercent(J124,K124) -> 0 | M124: 0 | N124: 0 | O124: 0 | P124: 0 | Q124: 0 | R124: 0 | S124: 0 | T124: 0 | U124: 0 | V124: 0 | W124: 0 | X124: 0 | Y124: 0 | Z124: 0
A125: 04 05 | B125: 41 | C125: 635 | D125: Údržba rozhlasu | E125: 486 | F125: 4156.49 | G125: 1500 | H125: 1461.6 | I125: 0 | J125: =SUM(H125:I125) -> 1461.6 | K125: 0 | L125: =vypocetPercent(J125,K125) -> 0 | M125: 0 | N125: 0 | O125: 0 | P125: 0 | Q125: 0 | R125: 0 | S125: 0 | T125: 0 | U125: 0 | V125: 0 | W125: 0 | X125: 0 | Y125: 0 | Z125: 0
A126: 04 05 | B126: 41 | C126: 637 | D126: Služby | E126: 58.8 | F126: 20.4 | G126: 0 | H126: 38.4 | I126: 0 | J126: =SUM(H126:I126) -> 38.4 | K126: 38.4 | L126: 100 | M126: 0 | N126: 0 | O126: 0 | P126: 0 | Q126: 0 | R126: 0 | S126: 0 | T126: 0 | U126: 0 | V126: 0 | W126: 0 | X126: 0 | Y126: 0 | Z126: 0
A127: 04 05 | B127: Bežný rozpočet | E127: =SUM(E124:E126) -> 890.76 | F127: =SUM(F124:F126) -> 5302.19 | G127: =SUM(G124:G126) -> 2500 | H127: =SUM(H124:H126) -> 2500 | I127: =SUM(I124:I126) -> 0 | J127: =SUM(H127:I127) -> 2500 | K127: =SUM(K124:K126) -> 38.4 | L127: 1.536 | M127: 890.76 | N127: 5302.19 | O127: 0 | P127: 2500 | Q127: 0 | R127: 0 | S127: 0 | T127: 0 | U127: 2500 | V127: 0 | W127: 38.4 | X127: 0 | Y127: 2500 | Z127: 0
A128: 04 06 Podprogram Obecné noviny | M128: 0 | N128: 0 | O128: 0 | P128: 0 | Q128: 0 | R128: 0 | S128: 0 | T128: 0 | U128: 0 | V128: 0 | W128: 0 | X128: 0 | Y128: 0 | Z128: 0
A129: 04 06 | B129: 41 | C129: 637 | D129: Služby - tlač novín | E129: 7375.8 | F129: 5707.44 | G129: 7500 | H129: 7500 | I129: 0 | J129: =SUM(H129:I129) -> 7500 | K129: 2233.08 | L129: =vypocetPercent(J129,K129) -> 29.7744 | M129: 0 | N129: 0 | O129: 0 | P129: 0 | Q129: 0 | R129: 0 | S129: 0 | T129: 0 | U129: 0 | V129: 0 | W129: 0 | X129: 0 | Y129: 0 | Z129: 0
A130: 04 06 | B130: Bežný rozpočet | E130: =SUM(E129:E129) -> 7375.8 | F130: =SUM(F129:F129) -> 5707.44 | G130: =SUM(G129:G129) -> 7500 | H130: =SUM(H129:H129) -> 7500 | I130: =SUM(I129:I129) -> 0 | J130: =SUM(H130:I130) -> 7500 | K130: =SUM(K129:K129) -> 2233.08 | L130: =vypocetPercent(J130,K130) -> 29.7744 | M130: 7375.8 | N130: 5707.44 | O130: 0 | P130: 7500 | Q130: 0 | R130: 0 | S130: 0 | T130: 0 | U130: 7500 | V130: 0 | W130: 2233.08 | X130: 0 | Y130: 7500 | Z130: 0
A131: 05 Program Bezpečnosť, právo a poriadok | M131: 0 | N131: 0 | O131: 0 | P131: 0 | Q131: 0 | R131: 0 | S131: 0 | T131: 0 | U131: 0 | V131: 0 | W131: 0 | X131: 0 | Y131: 0 | Z131: 0
A132: 05 01 Podprogram Obecná polícia | M132: 0 | N132: 0 | O132: 0 | P132: 0 | Q132: 0 | R132: 0 | S132: 0 | T132: 0 | U132: 0 | V132: 0 | W132: 0 | X132: 0 | Y132: 0 | Z132: 0
A133: 05 01 | B133: 20 | C133: 610 | D133: Mzdy, platy, OON | E133: 0 | F133: 3933.04 | G133: 0 | H133: 0 | I133: 0 | J133: =SUM(H133:I133) -> 0 | K133: 0 | L133: =vypocetPercent(J133,K133) -> 0 | M133: 0 | N133: 0 | O133: =IF(B133="Kapitálový rozpočet",G133,0) -> 0 | Q133: 0 | S133: 0 | T133: 0 | U133: 0 | V133: 0 | W133: 0 | X133: 0 | Y133: 0 | Z133: 0
A134: 05 01 | B134: 20 | C134: 620 | D134: Poistné a príspevky | E134: 0 | F134: 1207.29 | G134: 0 | H134: 0 | I134: 0 | J134: 0 | K134: 0 | L134: 0 | M134: 0 | N134: 0 | O134: 0 | Q134: 0 | S134: 0 | T134: 0 | U134: 0 | V134: 0 | W134: 0 | X134: 0 | Y134: 0 | Z134: 0
A135: 05 01 | B135: 20 | C135: Finančné aktíva | E135: =SUM(E133:E134) -> 0 | F135: =SUM(F133:F134) -> 5140.33 | G135: =SUM(G133:G134) -> 0 | H135: 0 | I135: 0 | J135: 0 | K135: =SUM(K133:K134) -> 0 | L135: 0 | M135: =IF(B135="Bežný rozpočet",E135,0) -> 0 | N135: 0 | O135: 0 | Q135: 0 | S135: 0 | T135: 0 | U135: 0 | V135: 0 | W135: 0 | X135: 0 | Y135: 0 | Z135: 0
A136: 05 01 | B136: 41 | C136: 610 | D136: Mzdy, platy, OON | E136: 24421.5 | F136: 21514.41 | G136: 28000 | H136: 28000 | I136: 0 | J136: =SUM(H136:I136) -> 28000 | K136: 13096.32 | L136: =vypocetPercent(J136,K136) -> 46.77257143 | M136: 0 | N136: 0 | O136: 0 | P136: =IF(B136="Bežný rozpočet",G136,0) -> 0 | Q136: 0 | R136: =IF(B136="Kapitálový rozpočet",E136,0) -> 0 | S136: =IF(B136="Bežný rozpočet",I136,0) -> 0 | T136: 0 | U136: =IF(B136="Bežný rozpočet",J136,0) -> 0 | V136: 0 | W136: =IF(B136="Bežný rozpočet",K136,0) -> 0 | X136: =IF(B136="Kapitálový rozpočet",K136,0) -> 0 | Y136: =IF(B136="Bežný rozpočet",H136,0) -> 0 | Z136: =IF(B136="Kapitálový rozpočet",J136,0) -> 0
A137: 05 01 | B137: 41 | C137: 620 | D137: Poistné a príspevky | E137: 8534.47 | F137: 7920.35 | G137: 9800 | H137: 9800 | I137: 0 | J137: =SUM(H137:I137) -> 9800 | K137: 4576.74 | L137: =vypocetPercent(J137,K137) -> 46.70142857 | M137: 0 | N137: 0 | O137: 0 | P137: 0 | Q137: 0 | R137: 0 | S137: 0 | T137: =IF(B137="Kapitálový rozpočet",I137,0) -> 0 | U137: 0 | V137: 0 | W137: 0 | X137: 0 | Y137: 0 | Z137: 0
A138: 05 01 | B138: 41 | C138: 632 | D138: Energie - obecná polícia, kamery | E138: 1606.75 | F138: 3664.61 | G138: 5200 | H138: 5200 | I138: 0 | J138: 5200 | K138: 1849.76 | L138: 35.57230769 | M138: 0 | N138: 0 | O138: 0 | P138: 0 | Q138: 0 | R138: 0 | S138: 0 | T138: 0 | U138: 0 | V138: 0 | W138: 0 | X138: 0 | Y138: 0 | Z138: 0
A139: 05 01 | B139: 41 | C139: 632 | D139: Energie - telek., fotopasce | E139: 803.37 | F139: 1199.37 | G139: 0 | H139: 0 | I139: 0 | J139: 0 | K139: 0 | L139: 0 | M139: 0 | N139: 0 | O139: 0 | P139: 0 | Q139: 0 | R139: 0 | S139: 0 | T139: 0 | U139: 0 | V139: =IF(B139="Kapitálový rozpočet",H139,0) -> 0 | W139: 0 | X139: 0 | Y139: 0 | Z139: 0
A140: 05 01 | B140: 41 | C140: 633 | D140: Materiál | E140: 1628.36 | F140: 866.41 | G140: 1200 | H140: 1200 | I140: 0 | J140: 1200 | K140: 685.54 | L140: 57.12833333 | M140: 0 | N140: =IF(B140="Bežný rozpočet",F140,0) -> 0 | O140: 0 | P140: 0 | Q140: 0 | R140: 0 | S140: 0 | T140: 0 | U140: 0 | V140: 0 | W140: 0 | X140: 0 | Y140: 0 | Z140: 0
A141: 05 01 | B141: 41 | C141: 634 | D141: Dopravné náklady | E141: 1930.27 | F141: 2311.66 | G141: 2000 | H141: 2450 | I141: 0 | J141: 2450 | K141: 956.15 | L141: 39.02653061 | M141: 0 | N141: 0 | O141: 0 | P141: 0 | Q141: 0 | R141: 0 | S141: 0 | T141: 0 | U141: 0 | V141: 0 | W141: 0 | X141: 0 | Y141: 0 | Z141: 0
A142: 05 01 | B142: 41 | C142: 635 | D142: Údržba kamier | E142: 0 | F142: 2991.6 | G142: 3000 | H142: 3000 | I142: 0 | J142: 3000 | K142: 0 | L142: 0 | M142: 0 | N142: 0 | O142: 0 | P142: 0 | Q142: 0 | R142: 0 | S142: 0 | T142: 0 | U142: 0 | V142: 0 | W142: 0 | X142: 0 | Y142: 0 | Z142: 0
A143: 05 01 | B143: 41 | C143: 637 | D143: Služby | E143: 150 | F143: 99.38 | G143: 200 | H143: 440 | I143: 0 | J143: 440 | K143: 347.04 | L143: 78.87272727 | M143: 0 | N143: 0 | O143: 0 | P143: 0 | Q143: 0 | R143: 0 | S143: 0 | T143: 0 | U143: 0 | V143: 0 | W143: 0 | X143: 0 | Y143: 0 | Z143: 0
A144: 05 01 | B144: 41 | C144: 642 | D144: Bežné transf. na ND, odstupné | E144: 0 | F144: 163 | G144: 0 | H144: 0 | I144: 0 | J144: 0 | K144: 0 | L144: 0 | M144: 0 | N144: 0 | O144: 0 | P144: 0 | Q144: 0 | R144: 0 | S144: 0 | T144: 0 | U144: 0 | V144: 0 | W144: 0 | X144: 0 | Y144: 0 | Z144: 0
A145: 05 01 | B145: Bežný rozpočet | E145: =SUM(E136:E144,E135) -> 39074.72 | F145: =SUM(F136:F144,F135) -> 45871.12 | G145: =SUM(G136:G144,G135) -> 49400 | H145: =SUM(H136:H144,H135) -> 50090 | I145: =SUM(I136:I144,I135) -> 0 | J145: 50090 | K145: =SUM(K136:K144,K135) -> 21511.55 | L145: 42.94579756 | M145: 39074.72 | N145: 45871.12 | O145: 0 | P145: 49400 | Q145: 0 | R145: 0 | S145: 0 | T145: 0 | U145: 50090 | V145: 0 | W145: 21511.55 | X145: 0 | Y145: 50090 | Z145: 0
A146: 05 01 | B146: 46 | C146: 714 | D146: Nákup dopr.prostr. | E146: 0 | F146: 0 | G146: 0 | H146: 15490 | I146: 0 | J146: 15490 | K146: 15490 | L146: 100 | M146: 0 | N146: 0 | O146: 0 | P146: 0 | Q146: 0 | R146: 0 | S146: 0 | T146: 0 | U146: 0 | V146: 0 | W146: 0 | X146: 0 | Y146: 0 | Z146: 0
A147: 05 01 | B147: Kapitálový rozpočet | E147: =SUM(E146) -> 0 | F147: =SUM(F146) -> 0 | G147: =SUM(G146) -> 0 | H147: =SUM(H146) -> 15490 | I147: 0 | J147: 15490 | K147: =SUM(K146) -> 15490 | L147: 100 | M147: 0 | N147: 0 | O147: 0 | P147: 0 | Q147: 0 | R147: 0 | S147: 0 | T147: 0 | U147: 0 | V147: 15490 | W147: 0 | X147: 15490 | Y147: 0 | Z147: 15490
A148: 05 01 | B148: Obecná polícia spolu | E148: =SUM(E147,E145) -> 39074.72 | F148: =SUM(F147,F145) -> 45871.12 | G148: =SUM(G147,G145) -> 49400 | H148: =SUM(H147,H145) -> 65580 | I148: =SUM(I147,I145) -> 0 | J148: 65580 | K148: =SUM(K147,K145) -> 37001.55 | L148: 56.42200366 | M148: 0 | N148: 0 | O148: 0 | P148: 0 | Q148: 0 | R148: 0 | S148: 0 | T148: 0 | U148: 0 | V148: 0 | W148: 0 | X148: 0 | Y148: 0 | Z148: 0
A149: 05 02 Podprogram Dobrovoľný hasičský zbor obce | M149: 0 | N149: 0 | O149: 0 | P149: 0 | Q149: 0 | R149: 0 | S149: 0 | T149: 0 | U149: 0 | V149: 0 | W149: 0 | X149: 0 | Y149: 0 | Z149: 0
A150: 05 02 | B150: 41 | C150: 631 | D150: Cestovné náklady | E150: 176.24 | F150: 0 | G150: 150 | H150: 150 | I150: 0 | J150: =SUM(H150:I150) -> 150 | K150: 0 | L150: =vypocetPercent(J150,K150) -> 0 | M150: 0 | N150: 0 | O150: 0 | P150: 0 | Q150: 0 | R150: 0 | S150: 0 | T150: 0 | U150: 0 | V150: 0 | W150: 0 | X150: 0 | Y150: 0 | Z150: 0
A151: 05 02 | B151: 41 | C151: 632 | D151: Poplatok za využ.frekvencie | E151: 1.92 | F151: 1.92 | G151: 2 | H151: 2 | I151: 0 | J151: =SUM(H151:I151) -> 2 | K151: 1.92 | L151: =vypocetPercent(J151,K151) -> 96 | M151: 0 | N151: 0 | O151: 0 | P151: 0 | Q151: 0 | R151: 0 | S151: 0 | T151: 0 | U151: 0 | V151: 0 | W151: 0 | X151: 0 | Y151: 0 | Z151: 0
A152: 05 02 | B152: 41 | C152: 633 | D152: Materiál | E152: 860.45 | F152: 767.55 | G152: 1300 | H152: 1300 | I152: 0 | J152: 1300 | K152: 199.11 | L152: 15.31615385 | M152: 0 | N152: 0 | O152: 0 | P152: 0 | Q152: 0 | R152: 0 | S152: 0 | T152: 0 | U152: 0 | V152: 0 | W152: 0 | X152: 0 | Y152: 0 | Z152: 0
A153: 05 02 | B153: 41 | C153: 634 | D153: Dopravné náklady | E153: 1170.62 | F153: 1332.29 | G153: 950 | H153: 950 | I153: 0 | J153: 950 | K153: 51.26 | L153: 5.395789474 | M153: 0 | N153: 0 | O153: 0 | P153: 0 | Q153: 0 | R153: 0 | S153: 0 | T153: 0 | U153: 0 | V153: 0 | W153: 0 | X153: 0 | Y153: 0 | Z153: 0
A154: 05 02 | B154: 41 | C154: 635 | D154: Údržba | E154: 15.8 | F154: 177.9 | G154: 200 | H154: 200 | I154: 0 | J154: 200 | K154: 0 | L154: 0 | M154: 0 | N154: 0 | O154: 0 | P154: 0 | Q154: 0 | R154: 0 | S154: 0 | T154: 0 | U154: 0 | V154: 0 | W154: 0 | X154: 0 | Y154: 0 | Z154: 0
A155: 05 02 | B155: 41 | C155: 637 | D155: Služby | E155: 20 | F155: 44.99 | G155: 45 | H155: 45 | I155: 0 | J155: 45 | K155: 0 | L155: 0 | M155: 0 | N155: 0 | O155: 0 | P155: 0 | Q155: 0 | R155: 0 | S155: 0 | T155: 0 | U155: 0 | V155: 0 | W155: 0 | X155: 0 | Y155: 0 | Z155: 0
A156: 05 02 | B156: 72c | C156: 633 | D156: Materiál - dotácia | E156: 2600 | F156: 2700 | G156: 0 | H156: 0 | I156: 3000 | J156: 3000 | K156: 0 | L156: 0 | M156: 0 | N156: 0 | O156: 0 | P156: 0 | Q156: 0 | R156: 0 | S156: 0 | T156: 0 | U156: 0 | V156: 0 | W156: 0 | X156: 0 | Y156: 0 | Z156: 0
A157: 05 02 | B157: 72c | C157: 637 | D157: Služby | E157: 400 | F157: 300 | G157: 0 | H157: 0 | I157: 0 | J157: 0 | K157: 0 | L157: 0 | M157: 0 | N157: 0 | O157: 0 | P157: 0 | Q157: 0 | R157: 0 | S157: 0 | T157: 0 | U157: 0 | V157: 0 | W157: 0 | X157: 0 | Y157: 0 | Z157: 0
A158: 05 02 | B158: Bežný rozpočet | E158: =SUM(E150:E157) -> 5245.03 | F158: =SUM(F150:F157) -> 5324.65 | G158: =SUM(G150:G157) -> 2647 | H158: =SUM(H150:H157) -> 2647 | I158: =SUM(I150:I157) -> 3000 | J158: 5647 | K158: =SUM(K150:K157) -> 252.29 | L158: 4.467681955 | M158: 5245.03 | N158: 5324.65 | O158: 0 | P158: 2647 | Q158: 0 | R158: 0 | S158: 3000 | T158: 0 | U158: 5647 | V158: 0 | W158: 252.29 | X158: 0 | Y158: 2647 | Z158: 0
A159: 05 02 | B159: 41 | C159: 714 | D159: Nadstavba na vozík | E159: 0 | F159: 0 | G159: 1600 | H159: 1600 | I159: 0 | J159: 1600 | K159: 335.62 | L159: 20.97625 | O159: 0 | S159: 0 | U159: 0 | V159: 0 | W159: 0 | X159: 0 | Y159: 0 | Z159: 0
A160: 05 02 | B160: Kapitálový rozpočet | E160: =SUM(E159) -> 0 | F160: =SUM(F159) -> 0 | G160: 1600 | H160: 1600 | I160: =SUM(I159) -> 0 | J160: 1600 | K160: =SUM(K159) -> 335.62 | L160: 20.97625 | O160: 1600 | S160: 0 | U160: 0 | V160: 1600 | W160: 0 | X160: 335.62 | Y160: 0 | Z160: 1600
A161: 05 02 | B161: Spolu rozpočet | E161: =SUM(E160,E158) -> 5245.03 | F161: =SUM(F160,F158) -> 5324.65 | G161: 4247 | H161: 4247 | I161: 3000 | J161: 7247 | K161: =SUM(K158,K160) -> 587.91 | L161: 8.112460328 | O161: 0 | S161: 0 | U161: 0 | V161: 0 | W161: 0 | X161: 0 | Y161: 0 | Z161: 0
A162: 06 Program Odpadové hospodárstvo | M162: 0 | N162: 0 | O162: 0 | P162: 0 | Q162: 0 | R162: 0 | S162: 0 | T162: 0 | U162: 0 | V162: 0 | W162: 0 | X162: 0 | Y162: 0 | Z162: 0
A163: 06 01 Podprogram Triedený zber z prostriedkov ENVIPAK, Recobal a TUNSKO | M163: 0 | N163: 0 | O163: 0 | P163: 0 | Q163: 0 | R163: 0 | S163: 0 | T163: 0 | U163: 0 | V163: 0 | W163: 0 | X163: 0 | Y163: 0 | Z163: 0
A164: 06 01 | B164: 41 | C164: 610 | D164: Mzdy, platy, OON | E164: 116699.69 | F164: 148590.54 | G164: 156800 | H164: 86550.87 | I164: 0 | J164: =SUM(H164:I164) -> 86550.87 | K164: 62739.02 | L164: =vypocetPercent(J164,K164) -> 72.48802929 | M164: 0 | N164: 0 | O164: 0 | P164: 0 | Q164: 0 | R164: 0 | S164: 0 | T164: 0 | U164: 0 | V164: 0 | W164: 0 | X164: 0 | Y164: 0 | Z164: 0
A165: 06 01 | B165: 41 | C165: 620 | D165: Poistné a príspevky | E165: 40504.98 | F165: 55842.52 | G165: 55300 | H165: 34660 | I165: 0 | J165: =SUM(H165:I165) -> 34660 | K165: 24793.3 | L165: =vypocetPercent(J165,K165) -> 71.53289094 | M165: 0 | N165: 0 | O165: 0 | P165: 0 | Q165: 0 | R165: 0 | S165: 0 | T165: 0 | U165: 0 | V165: 0 | W165: 0 | X165: 0 | Y165: 0 | Z165: 0
A166: 06 01 | B166: 41 | C166: 610 | D166: Mzdy-spolufin.na projekt. ÚPSVaR | E166: 31848.83 | F166: 7786.19 | G166: 3115 | H166: 8160 | I166: 0 | J166: 8160 | K166: 3708.15 | L166: 45.44301471 | M166: 0 | N166: 0 | O166: 0 | P166: 0 | Q166: 0 | R166: 0 | S166: 0 | T166: 0 | U166: 0 | V166: 0 | W166: 0 | X166: 0 | Y166: 0 | Z166: 0
A167: 06 01 | B167: 41 | C167: 620 | D167: Poist.-spolufin.na proejekt. ÚPSVaR | E167: 11111.39 | F167: 4061.83 | G167: 1089 | H167: 2853 | I167: 0 | J167: 2853 | K167: 1434.32 | L167: 50.27409744 | M167: 0 | N167: 0 | O167: 0 | P167: 0 | Q167: 0 | R167: 0 | S167: 0 | T167: 0 | U167: 0 | V167: 0 | W167: 0 | X167: 0 | Y167: 0 | Z167: 0
A168: 06 01 | B168: 41 | C168: 632 | D168: Energie | E168: 9139.8 | F168: 7802.21 | G168: 6500 | H168: 4000 | I168: 0 | J168: 4000 | K168: 2599.18 | L168: 64.9795 | M168: 0 | N168: 0 | O168: 0 | P168: 0 | Q168: 0 | R168: 0 | S168: 0 | T168: 0 | U168: 0 | V168: 0 | W168: 0 | X168: 0 | Y168: 0 | Z168: 0
A169: 06 01 | B169: 41 | C169: 633 | D169: Materiál | E169: 1788.59 | F169: 7840.16 | G169: 5000 | H169: 3000 | I169: 0 | J169: 3000 | K169: 2455.69 | L169: 81.85633333 | M169: 0 | N169: 0 | O169: 0 | P169: 0 | Q169: 0 | R169: 0 | S169: 0 | T169: 0 | U169: 0 | V169: 0 | W169: 0 | X169: 0 | Y169: 0 | Z169: 0
A170: 06 01 | B170: 41 | C170: 634 | D170: Dopravné náklady | E170: 49902.75 | F170: 23198.89 | G170: 19496 | H170: 5196 | I170: 0 | J170: 5196 | K170: 4436.96 | L170: 85.39183988 | M170: 0 | N170: 0 | O170: 0 | P170: =IF(B170="Bežný rozpočet",G170,0) -> 0 | Q170: 0 | R170: =IF(B170="Kapitálový rozpočet",E170,0) -> 0 | S170: 0 | T170: 0 | U170: 0 | V170: 0 | W170: 0 | X170: 0 | Y170: 0 | Z170: 0
A171: 06 01 | B171: 41 | C171: 635 | D171: Údržba prev.strojov | E171: 449.24 | F171: 2189.28 | G171: 3000 | H171: 1500 | I171: 0 | J171: 1500 | K171: 8.09 | L171: 0.5393333333 | M171: 0 | N171: 0 | O171: 0 | P171: 0 | Q171: 0 | R171: 0 | S171: 0 | T171: 0 | U171: 0 | V171: 0 | W171: 0 | X171: 0 | Y171: 0 | Z171: 0
A172: 06 01 | B172: 41 | C172: 636 | D172: Nájomné zaprev.stroje a prístroje | E172: 0 | F172: 57.6 | G172: 60 | H172: 60 | I172: 0 | J172: 60 | K172: 0 | L172: 0 | M172: 0 | N172: 0 | O172: 0 | P172: 0 | Q172: 0 | R172: 0 | S172: 0 | T172: 0 | U172: 0 | V172: 0 | W172: 0 | X172: 0 | Y172: 0 | Z172: 0
A173: 06 01 | B173: 41 | C173: 637 | D173: Služby | E173: 18593.53 | F173: 32581.05 | G173: 18000 | H173: 11700 | I173: 0 | J173: 11700 | K173: 4541.2 | L173: 38.81367521 | M173: 0 | N173: 0 | O173: 0 | P173: 0 | Q173: 0 | R173: 0 | S173: 0 | T173: 0 | U173: 0 | V173: 0 | W173: 0 | X173: 0 | Y173: 0 | Z173: 0
A174: 06 01 | B174: 41 | C174: 642 | D174: Bežné transf.na nemoc.dávky - VPP | E174: 1354.78 | F174: 0 | G174: 0 | H174: 0 | I174: 0 | J174: 0 | K174: 0 | L174: 0 | M174: 0 | N174: 0 | O174: 0 | P174: 0 | Q174: 0 | R174: 0 | S174: 0 | T174: 0 | U174: 0 | V174: 0 | W174: 0 | X174: 0 | Y174: 0 | Z174: 0
A175: 06 01 | B175: 41 | C175: 642 | D175: Bežné transf.na odstupné | E175: 0 | F175: 0 | G175: 0 | H175: 11851 | I175: 0 | J175: 11851 | K175: 9741 | L175: 82.19559531 | M175: 0 | N175: 0 | O175: 0 | P175: 0 | Q175: 0 | R175: 0 | S175: 0 | T175: 0 | U175: 0 | V175: 0 | W175: 0 | X175: 0 | Y175: 0 | Z175: 0
A176: 06 01 | B176: 41 | C176: 642 | D176: Bežné transf.na nemoc.dávky | E176: 606.07 | F176: 1620.09 | G176: 0 | H176: 1068.13 | I176: 0 | J176: 1068.13 | K176: 1065.24 | L176: 99.72943368 | M176: 0 | N176: 0 | O176: 0 | P176: 0 | Q176: =IF(B176="Kapitálový rozpočet",F176,0) -> 0 | R176: 0 | S176: 0 | T176: 0 | U176: 0 | V176: 0 | W176: 0 | X176: 0 | Y176: 0 | Z176: 0
A177: 06 01 | B177: 41 | C177: Zberová spoločnosť - Vlastné zdroje | E177: =SUM(E164:E176) -> 281999.65 | F177: =SUM(F164:F176) -> 291570.36 | G177: =SUM(G164:G176) -> 268360 | H177: =SUM(H164:H176) -> 170599 | I177: =SUM(I164:I176) -> 0 | J177: 170599 | K177: =SUM(K164:K176) -> 117522.15 | L177: 68.88794776 | M177: 0 | N177: 0 | O177: 0 | P177: 0 | Q177: 0 | R177: 0 | S177: 0 | T177: 0 | U177: 0 | V177: 0 | W177: 0 | X177: 0 | Y177: 0 | Z177: 0
A178: 06 01 | B178: 72b | C178: 620 | D178: Poistné a príspevky | E178: 916 | F178: 0 | G178: 0 | H178: 0 | I178: 0 | J178: 0 | K178: 0 | L178: 0 | M178: 0 | N178: 0 | O178: 0 | P178: 0 | Q178: 0 | R178: 0 | S178: 0 | T178: 0 | U178: 0 | V178: 0 | W178: 0 | X178: 0 | Y178: 0 | Z178: 0
A179: 06 01 | B179: 72b | C179: 631 | D179: Cestovné náklady | E179: 15.5 | F179: 0 | G179: 0 | H179: 0 | I179: 0 | J179: 0 | K179: 0 | L179: 0 | M179: 0 | N179: 0 | O179: 0 | P179: 0 | Q179: 0 | R179: 0 | S179: 0 | T179: 0 | U179: 0 | V179: 0 | W179: 0 | X179: 0 | Y179: 0 | Z179: 0
A180: 06 01 | B180: 72b | C180: 632 | D180: Energie | E180: 525.88 | F180: 0 | G180: 0 | H180: 0 | I180: 0 | J180: 0 | K180: 0 | L180: 0 | M180: 0 | N180: 0 | O180: 0 | P180: 0 | Q180: 0 | R180: 0 | S180: 0 | T180: 0 | U180: 0 | V180: 0 | W180: 0 | X180: 0 | Y180: 0 | Z180: 0
A181: 06 01 | B181: 72b | C181: 633 | D181: Materiál | E181: 3322 | F181: 0 | G181: 0 | H181: 0 | I181: 0 | J181: 0 | K181: 0 | L181: 0 | M181: 0 | N181: 0 | O181: 0 | P181: 0 | Q181: 0 | R181: 0 | S181: 0 | T181: 0 | U181: 0 | V181: 0 | W181: 0 | X181: 0 | Y181: 0 | Z181: 0
A182: 06 01 | B182: 72b | C182: 634 | D182: Dopravné náklady | E182: 6432.93 | F182: 33000 | G182: 23000 | H182: 19600 | I182: 0 | J182: 19600 | K182: 7582.56 | L182: 38.68653061 | M182: 0 | N182: 0 | O182: 0 | P182: 0 | Q182: 0 | R182: 0 | S182: 0 | T182: 0 | U182: 0 | V182: 0 | W182: 0 | X182: 0 | Y182: 0 | Z182: 0
A183: 06 01 | B183: 72b | C183: 635 | D183: Údržba prev.strojov | E183: 11663.19 | F183: 0 | G183: 0 | H183: 0 | I183: 0 | J183: 0 | K183: 0 | L183: 0 | M183: 0 | N183: 0 | O183: 0 | P183: 0 | Q183: 0 | R183: 0 | S183: 0 | T183: 0 | U183: 0 | V183: 0 | W183: 0 | X183: 0 | Y183: 0 | Z183: 0
A184: 06 01 | B184: 72b | C184: 637 | D184: Služby,odmeny MPP | E184: 1520 | F184: 0 | G184: 0 | H184: 0 | I184: 0 | J184: 0 | K184: 0 | L184: 0 | M184: 0 | N184: 0 | O184: 0 | P184: 0 | Q184: 0 | R184: 0 | S184: 0 | T184: 0 | U184: 0 | V184: 0 | W184: 0 | X184: 0 | Y184: 0 | Z184: 0
A185: 06 01 | B185: 72b | C185: Zb. sp. - Iné zdroje na základe zmluvy | E185: =SUM(E178:E184) -> 24395.5 | F185: =SUM(F178:F184) -> 33000 | G185: =SUM(G178:G184) -> 23000 | H185: =SUM(H178:H184) -> 19600 | I185: =SUM(I178:I184) -> 0 | J185: 19600 | K185: =SUM(K178:K184) -> 7582.56 | L185: 38.68653061 | M185: 0 | N185: 0 | O185: 0 | P185: 0 | Q185: 0 | R185: 0 | S185: 0 | T185: 0 | U185: 0 | V185: 0 | W185: 0 | X185: 0 | Y185: 0 | Z185: 0
A186: 06 01 | B186: 72c | C186: 610 | D186: Mzdy, platy, OON - ÚPSVaR | E186: 0 | F186: 0 | G186: 0 | H186: 6234.16 | I186: 0 | J186: 6234.16 | K186: 4076.9 | L186: 65.39613998 | S186: 0 | U186: 0 | V186: 0 | W186: 0 | X186: 0 | Y186: 0 | Z186: 0
A187: 06 01 | B187: 72c | C187: 620 | D187: Poistné a príspevky - ÚPSVaR | E187: 0 | F187: 0 | G187: 0 | H187: 2220.91 | I187: 0 | J187: 2220.91 | K187: 1424.28 | L187: 64.13046904 | S187: 0 | U187: 0 | V187: 0 | W187: 0 | X187: 0 | Y187: 0 | Z187: 0
A188: 06 01 | B188: 72c | C188: 642 | D188: Bežné transf.na nemoc.dávky - VPP | E188: 0 | F188: 0 | G188: 0 | H188: 120.37 | I188: 0 | J188: 120.37 | K188: 120.37 | L188: 100 | S188: 0 | U188: 0 | V188: 0 | W188: 0 | X188: 0 | Y188: 0 | Z188: 0
A189: 06 01 | B189: 72c | C189: Zb.sp. - Od ÚPSVaR podľa osob.predpisu | E189: =SUM(E186:E188) -> 0 | F189: =SUM(F186:F188) -> 0 | G189: 0 | H189: 8575.44 | I189: 0 | J189: 8575.44 | K189: =SUM(K186:K188) -> 5621.55 | L189: 65.55407069 | S189: 0 | U189: 0 | V189: 0 | W189: 0 | X189: 0 | Y189: 0 | Z189: 0
A190: 06 01 | B190: 72h | C190: 610 | D190: Mzdy, platy, OON - ÚPSVaR | E190: 10965.81 | F190: 4340.89 | G190: 0 | H190: 469.62 | I190: 0 | J190: 469.62 | K190: 469.62 | L190: 100 | M190: 0 | N190: 0 | O190: 0 | P190: 0 | Q190: 0 | R190: 0 | S190: 0 | T190: 0 | U190: 0 | V190: 0 | W190: 0 | X190: 0 | Y190: 0 | Z190: 0
A191: 06 01 | B191: 72h | C191: 620 | D191: Poistné a príspevky - ÚPSVaR | E191: 3681.53 | F191: 174.11 | G191: 0 | H191: 0 | I191: 0 | J191: 0 | K191: 0 | L191: 0 | M191: 0 | N191: 0 | O191: 0 | P191: 0 | Q191: 0 | R191: 0 | S191: 0 | T191: 0 | U191: 0 | V191: 0 | W191: 0 | X191: 0 | Y191: 0 | Z191: 0
A192: 06 01 | B192: 72h | C192: Zb.sp. - Od ÚPSVaR podľa osob.predpisu | E192: =SUM(E190:E191) -> 14647.34 | F192: =SUM(F190:F191) -> 4515 | G192: =SUM(G190:G191) -> 0 | H192: =SUM(H190:H191) -> 469.62 | I192: =SUM(I190:I191) -> 0 | J192: 469.62 | K192: =SUM(K190:K191) -> 469.62 | L192: 100 | M192: 0 | N192: 0 | O192: 0 | P192: 0 | Q192: 0 | R192: 0 | S192: 0 | T192: 0 | U192: 0 | V192: 0 | W192: 0 | X192: 0 | Y192: 0 | Z192: 0
A193: 06 01 | B193: Bežný rozpočet | E193: =SUM(E185,E177,E192,E189) -> 321042.49 | F193: =SUM(F185,F177,F192,F189) -> 329085.36 | G193: 291360 | H193: 199244.06 | I193: =SUM(I185,I177,I192) -> 0 | J193: 199244.06 | K193: =SUM(K185,K177,K192,K189) -> 131195.88 | L193: 65.84682123 | M193: 321042.49 | N193: 329085.36 | O193: 0 | P193: 291360 | Q193: 0 | R193: 0 | S193: 0 | T193: 0 | U193: 199244.06 | V193: 0 | W193: 131195.88 | X193: 0 | Y193: 199244.06 | Z193: 0
A194: 06 02 Podprogram Triedený zber z prostriedkov obce | M194: 0 | N194: 0 | O194: 0 | P194: 0 | Q194: 0 | R194: 0 | S194: 0 | T194: 0 | U194: 0 | V194: 0 | W194: 0 | X194: 0 | Y194: 0 | Z194: 0
A195: 06 02 | B195: 41 | C195: 635 | D195: Údržba budov - Zberný dvor | E195: 4250.52 | F195: 3672.82 | G195: 2000 | H195: 1155 | I195: 0 | J195: =SUM(H195:I195) -> 1155 | K195: 1155 | L195: =vypocetPercent(J195,K195) -> 100 | M195: 0 | N195: 0 | O195: 0 | P195: 0 | Q195: 0 | R195: 0 | S195: 0 | T195: 0 | U195: 0 | V195: 0 | W195: 0 | X195: 0 | Y195: 0 | Z195: 0
A196: 06 02 | B196: 41 | C196: 633 | D196: Materiál spoluúčasť kompost. | E196: 7486.92 | F196: 0 | G196: 0 | H196: 0 | I196: 0 | J196: 0 | K196: 0 | L196: =vypocetPercent(J196,K196) -> 0 | M196: 0 | N196: 0 | O196: 0 | P196: 0 | Q196: 0 | R196: 0 | S196: 0 | T196: 0 | U196: 0 | V196: 0 | W196: 0 | X196: 0 | Y196: 0 | Z196: 0
A197: 06 02 | B197: 41 | C197: 633 | D197: Materiál | E197: 162.97 | F197: 2974.1 | G197: 5000 | H197: 1000 | I197: 0 | J197: 1000 | K197: 400 | L197: 40 | M197: 0 | N197: 0 | O197: 0 | P197: 0 | Q197: 0 | R197: 0 | S197: 0 | T197: 0 | U197: 0 | V197: 0 | W197: 0 | X197: 0 | Y197: 0 | Z197: 0
A198: 06 02 | B198: 41 | C198: 634 | D198: Dopravné náklady | E198: 0 | F198: 3128.76 | G198: 0 | H198: 0 | I198: 0 | J198: 0 | K198: 0 | L198: 0 | M198: 0 | N198: 0 | O198: 0 | P198: 0 | Q198: 0 | R198: 0 | S198: 0 | T198: 0 | U198: 0 | V198: 0 | W198: 0 | X198: 0 | Y198: 0 | Z198: 0
A199: 06 02 | B199: 41 | C199: 637 | D199: Služby | E199: 3837.56 | F199: 21469.04 | G199: 3000 | H199: 17845 | I199: 0 | J199: 17845 | K199: 401.76 | L199: 2.251386943 | M199: 0 | N199: 0 | O199: 0 | P199: 0 | Q199: 0 | R199: 0 | S199: 0 | T199: 0 | U199: 0 | V199: 0 | W199: 0 | X199: 0 | Y199: 0 | Z199: 0
A200: 06 02 | B200: 41 | C200: Zberný dvor - Vlastné zdroje | E200: =SUM(E195:E199) -> 15737.97 | F200: =SUM(F195:F199) -> 31244.72 | G200: =SUM(G195:G199) -> 10000 | H200: =SUM(H195:H199) -> 20000 | I200: =SUM(I195:I199) -> 0 | J200: 20000 | K200: =SUM(K195:K199) -> 1956.76 | L200: 9.7838 | M200: 0 | N200: 0 | O200: 0 | P200: 0 | Q200: 0 | R200: 0 | S200: =IF(B200="Bežný rozpočet",I200,0) -> 0 | T200: 0 | U200: =IF(B200="Bežný rozpočet",J200,0) -> 0 | V200: 0 | W200: =IF(B200="Bežný rozpočet",K200,0) -> 0 | X200: =IF(B200="Kapitálový rozpočet",K200,0) -> 0 | Y200: =IF(B200="Bežný rozpočet",H200,0) -> 0 | Z200: =IF(B200="Kapitálový rozpočet",J200,0) -> 0
A201: 06 02 | B201: 1AB1 | C201: 633 | D201: Kompostéry | E201: 127063.44 | F201: 0 | G201: 0 | H201: 0 | I201: 0 | J201: 0 | K201: 0 | L201: 0 | M201: 0 | N201: 0 | O201: =IF(B201="Kapitálový rozpočet",G201,0) -> 0 | P201: 0 | Q201: 0 | R201: 0 | S201: 0 | T201: 0 | U201: 0 | V201: 0 | W201: 0 | X201: 0 | Y201: 0 | Z201: 0
A202: 06 02 | B202: 1AB2 | C202: 633 | D202: Kompostéry | E202: 14948.64 | F202: 0 | G202: 0 | H202: 0 | I202: 0 | J202: 0 | K202: 0 | L202: 0 | M202: 0 | N202: 0 | O202: 0 | P202: 0 | Q202: 0 | R202: 0 | S202: 0 | T202: 0 | U202: 0 | V202: 0 | W202: 0 | X202: 0 | Y202: 0 | Z202: 0
... 261 more rows
